Workbook

Sheet Accueil
B4: Problème :
B6: La plupart des résultats d'enquêtes ou de mesures se présentent sous forme de tableaux de données avec en ligne les individus mesurés, et en colonnes chacune des valeurs mesurées. On se place ici dans le cas où les mesures sont des nombres (valeurs quantitatives). Si on a 20 questions * 100 individus cela fait un nuage de points en 20 dimensions. Comme on a l'habitude de travailler dans un espace à 3 dimensions on peut voir un objet, mais pour faire un rapport et interpréter ces données on utilise des graphiques. C'est à dire un document en 2 dimensions. Une première solution consisterait à prendre chacune des colonnes 2 à 2 pour faire tous les graphes de toutes les combinaisons de variables. Cela donnerait environ 200 graphes, ce qui n'aide pas à synthétiser l'information. L'ACP a pour but de remplacer les 20 questions par quelques axes qui seront à la fois interprétables facilement et représentatifs de l'information contenue dans le nuage de points. C'est un peu comme faire une photo d'un objet : on passe de 3 à 2 dimensions. Le but de l'ACP est de trouver l'endroit où poser l'appareil photo pour que l'on reconnaisse le mieux le sujet.
B8: Ce classeur permet de traiter un tableau de 1000 individus * 20 questions quantitatives
B10: Saisie des données
B11: Valeurs centrées réduites
B12: Valeurs propres vecteurs propres
B13: Cercle des variables
B14: Graphe des individus
B15: Graphique en 3D
B16: Nouvelles valeurs
B17: Segmentation en différentes classes
B23: Télécharger XLSTORE pour afficher l'aide

Sheet Images (hidden)

Sheet données
A1: nb lignes | B1: moyennes | C1: =AVERAGE(C4:C1003) -> 0.3522320833 | D1: =AVERAGE(D4:D1003) -> 64.25875 | E1: 1.88375 | F1: -2.442916667 | G1: 64.02520833 | H1: 2.098958333 | I1: -1.091875
A2: =COUNT(C4:C1003) -> 48 | B2: écarts type | C2: =STDEV(C4:C1003) -> 0.0003963501479 | D2: =STDEV(D4:D1003) -> 4.167494592 | E2: 0.7206930028 | F2: 5.497584366 | G2: 4.583735812 | H2: 0.6952582241 | I2: 8.288519272 | W2: nouvelles variables
A3: nb colonnes | B3: numéro | C3: heure | D3: diamètre1 | E3: décalage1 | F3: aspérités1 | G3: diamètre2 | H3: décalage2 | I3: aspérités2 | W3: axe1 | X3: axe2 | Y3: axe3 | Z3: axe4 | AA3: axe5 | AB3: cos2 axe1 | AC3: cos2 axe2 | AD3: cos2 axe3 | AE3: cos2 axe4 | AF3: cos2 axe5 | AG3: somme cos2 | AH3: Classe
A4: =COUNT(C4:V4) -> 7 | B4: 1 | C4: 0.35174 | D4: 64.79 | E4: 2.23 | F4: -3.82 | G4: 67.33 | H4: 2.33 | I4: -9.07 | W4: =MMULT(mcr,vecteurs_propres) -> 1.428695921 | X4: -1.045187152 | Y4: 0.4915092412 | Z4: -0.1285945087 | AA4: 0.04431079356 | AB4: =W4^2/$AG4 -> 0.601464582 | AC4: =X4^2/$AG4 -> 0.321898219 | AD4: =Y4^2/$AG4 -> 0.07118587444 | AE4: =Z4^2/$AG4 -> 0.004872763083 | AF4: =AA4^2/$AG4 -> 0.0005785614657 | AG4: =W4^2+X4^2+Y4^2+Z4^2+AA4^2 -> 3.393669545 | AH4: 1
B5: 2 | C5: 0.35176 | D5: 65.12 | E5: 2.13 | F5: -3.3 | G5: 66.9 | H5: 2.52 | I5: -8.35 | W5: 1.410789778 | X5: -0.8558944634 | Y5: 0.5230806413 | Z5: -0.1091560913 | AA5: -0.1181415047 | AB5: 0.6585323723 | AC5: 0.2423778643 | AD5: 0.09052943613 | AE5: 0.003942289126 | AF5: 0.004618038149 | AG5: 3.022368955 | AH5: 1
B6: 3 | C6: 0.35177 | D6: 65.07 | E6: 2.29 | F6: -3.11 | G6: 67.09 | H6: 2.43 | I6: -9.37 | W6: 1.485793481 | X6: -0.9314389824 | Y6: 0.5292232741 | Z6: 0.01933046734 | AA6: 0.08155548623 | AB6: 0.6565763037 | AC6: 0.2580341146 | AD6: 0.08330022574 | AE6: 0.0001111355531 | AF6: 0.001978220374 | AG6: 3.362263083 | AH6: 1
B7: 4 | C7: 0.35178 | D7: 65.22 | E7: 2.04 | F7: -3.63 | G7: 67.26 | H7: 2.28 | I7: -8.95 | W7: 1.262088484 | X7: -0.9639694334 | Y7: 0.5800136239 | Z7: -0.1921301164 | AA7: -0.1246719896 | AB7: 0.5471933228 | AC7: 0.3192182461 | AD7: 0.1155679928 | AE7: 0.01268095826 | AF7: 0.005339479971 | AG7: 2.910977301 | AH7: 1
B8: 5 | C8: 0.35181 | D8: 65.17 | E8: 2.08 | F8: -4.02 | G8: 66.96 | H8: 2.46 | I8: -9.81 | W8: 1.40081743 | X8: -0.9416117811 | Y8: 0.4330359622 | Z8: -0.06728287854 | AA8: -0.201264064 | AB8: 0.6368016846 | AC8: 0.2877298352 | AD8: 0.06085399001 | AE8: 0.001469096272 | AF8: 0.01314539393 | AG8: 3.081476573 | AH8: 1
B9: 6 | C9: 0.35182 | D9: 65.13 | E9: 2.26 | F9: -3.43 | G9: 67.99 | H9: 1.93 | I9: -8.83 | W9: 1.196458192 | X9: -1.001581973 | Y9: 0.610195204 | Z9: -0.1315015371 | AA9: 0.2566156697 | AB9: 0.495305333 | AC9: 0.3470970703 | AD9: 0.1288295615 | AE9: 0.005983283861 | AF9: 0.02278475134 | AG9: 2.890161097 | AH9: 1
B10: 7 | C10: 0.35183 | D10: 65.23 | E10: 2.25 | F10: -3.35 | G10: 67.83 | H10: 2.53 | I10: -9.48 | W10: 1.595650514 | X10: -0.8042065536 | Y10: 0.4839333555 | Z10: 0.09967718816 | AA10: -0.1070332279 | AB10: 0.7383357549 | AC10: 0.1875484863 | AD10: 0.06791245995 | AE10: 0.002881176767 | AF10: 0.003322122124 | AG10: =W10^2+X10^2+Y10^2+Z10^2+AA10^2 -> 3.448431889 | AH10: 1
B11: 8 | C11: 0.35184 | D11: 65.02 | E11: 2.19 | F11: -3.61 | G11: 67.27 | H11: 2.53 | I11: -9.23 | W11: 1.478991077 | X11: -0.8216545753 | Y11: 0.4041814457 | Z11: 0.06110658897 | AA11: -0.1431718586 | AB11: 0.7171555641 | AC11: 0.2213404663 | AD11: 0.05355931459 | AE11: 0.001224216836 | AF11: 0.006720438182 | AG11: 3.050125684 | AH11: 1
B12: 9 | C12: 0.35185 | D12: 65.2 | E12: 2.35 | F12: -3.09 | G12: 67.94 | H12: 2.04 | I12: -9.13 | W12: 1.301059291 | X12: -0.9156738476 | Y12: 0.5790859049 | Z12: 0.01924529803 | AA12: 0.2892000111 | AB12: 0.5737061721 | AC12: 0.284169175 | AD12: 0.1136531125 | AE12: 0.0001255291613 | AF12: 0.02834601129 | AG12: 2.950561387 | AH12: 1
B13: 10 | C13: 0.35188 | D13: 64.83 | E13: 2 | F13: -3.53 | G13: 66.78 | H13: 2.49 | I13: -9.19 | W13: 1.232281062 | X13: -0.8270241332 | Y13: 0.3996279472 | Z13: 0.04117029276 | AA13: -0.3078835861 | AB13: 0.6176157547 | AC13: 0.2781859442 | AD13: 0.06495469106 | AE13: 0.0006893927754 | AF13: 0.03855421723 | AG13: 2.458675325 | AH13: 1
B14: 11 | C14: 0.35189 | D14: 65 | E14: 2.06 | F14: -3.57 | G14: 67.49 | H14: 2.26 | I14: -9.63 | W14: 1.215182241 | X14: -0.8942931476 | Y14: 0.479622109 | Z14: 0.02356236981 | AA14: -0.1668258347 | AB14: 0.5825461036 | AC14: 0.315505751 | AD14: 0.0907498389 | AE14: 0.0002190208246 | AF14: 0.01097928571 | AG14: 2.534851524 | AH14: 1
B15: 12 | C15: 0.3519 | D15: 64.77 | E15: 2.14 | F15: -3.47 | G15: 67.66 | H15: 2.22 | I15: -9.45 | W15: 1.220942065 | X15: -0.8959249717 | Y15: 0.454555062 | Z15: 0.07721230172 | AA15: -0.07401932908 | AB15: 0.5935631939 | AC15: 0.3196098333 | AD15: 0.0822715816 | AE15: 0.002373831276 | AF15: 0.002181559879 | AG15: 2.511441987 | AH15: 1
B16: 13 | C16: 0.3519 | D16: 62.73 | E16: 2.16 | F16: -0.82 | G16: 67.8 | H16: 2.52 | I16: -9.89 | W16: 1.167139124 | X16: -0.965047956 | Y16: 0.5782748455 | Z16: 0.6184802097 | AA16: -0.2322203905 | AB16: 0.4445320075 | AC16: 0.3039174051 | AD16: 0.1091255347 | AE16: 0.1248272484 | AF16: 0.01759780433 | AG16: 3.064377168 | AH16: 1
B17: 14 | C17: 0.35191 | D17: 65.11 | E17: 2.21 | F17: -2.79 | G17: 67.84 | H17: 2.05 | I17: -9.07 | W17: 1.144513991 | X17: -0.8440138045 | Y17: 0.5874239919 | Z17: 0.07832202349 | AA17: 0.1206181855 | AB17: 0.5485345151 | AC17: 0.2983052159 | AD17: 0.1444990886 | AE17: 0.002568795582 | AF17: 0.006092384846 | AG17: 2.388021611 | AH17: 1
B18: 15 | C18: 0.35192 | D18: 64.77 | E18: 1.9 | F18: -3.79 | G18: 67.2 | H18: 2.59 | I18: -8.32 | W18: 1.233728573 | X18: -0.6922592128 | Y18: 0.3401876854 | Z18: 0.02849065955 | AA18: -0.522603714 | AB18: 0.6365996346 | AC18: 0.2004308774 | AD18: 0.0484021124 | AE18: 0.000339494033 | AF18: 0.1142278816 | AG18: 2.390963029 | AH18: 1
B19: 16 | C19: 0.35193 | D19: 64.81 | E19: 2.11 | F19: -2.85 | G19: 67.38 | H19: 2.34 | I19: -9.7 | W19: 1.213540941 | X19: -0.8120967135 | Y19: 0.4808134345 | Z19: 0.205263301 | AA19: -0.1530608402 | AB19: 0.6063100681 | AC19: 0.2715197473 | AD19: 0.095178554 | AE19: 0.01734636708 | AF19: 0.009645263594 | AG19: 2.42892489 | AH19: 1
B20: 17 | C20: 0.35194 | D20: 65.15 | E20: 2.25 | F20: -3.34 | G20: 68.08 | H20: 2.08 | I20: -8.31 | W20: 1.201349211 | X20: -0.7438045852 | Y20: 0.4698747905 | Z20: 0.053230836 | AA20: 0.1120286558 | AB20: 0.6464242001 | AC20: 0.2477974167 | AD20: 0.09888794732 | AE20: 0.001269128643 | AF20: 0.005621307228 | AG20: 2.232651448 | AH20: 1
B21: 18 | C21: 0.35196 | D21: 65.3 | E21: 2.18 | F21: -3.37 | G21: 68.05 | H21: 2.24 | I21: -8.3 | W21: 1.261485353 | X21: -0.6482515166 | Y21: 0.4419953036 | Z21: 0.08691170109 | AA21: -0.06183131837 | AB21: 0.7173676865 | AC21: 0.189436852 | AD21: 0.08806689707 | AE21: 0.00340513148 | AF21: 0.001723432976 | AG21: 2.21831193 | AH21: 1
B22: 19 | C22: 0.35197 | D22: 65.13 | E22: 2.27 | F22: -3.54 | G22: 66.97 | H22: 2.41 | I22: -8.44 | W22: 1.310555383 | X22: -0.618073919 | Y22: 0.266034022 | Z22: 0.1782022877 | AA22: 0.003874033021 | AB22: 0.7799568481 | AC22: 0.1734765011 | AD22: 0.03213913464 | AE22: 0.01442070087 | AF22: 6.815323177e-06 | AG22: 2.202115946 | AH22: 1
B23: 20 | C23: 0.35198 | D23: 62.82 | E23: 1.92 | F23: -1.7 | G23: 67.8 | H23: 2.18 | I23: -9.03 | W23: 0.7562924687 | X23: -0.9641514773 | Y23: 0.5295365712 | Z23: 0.3910532162 | AA23: -0.3348241855 | AB23: 0.2794220051 | AC23: 0.4541210105 | AD23: 0.1369849866 | AE23: 0.07470553453 | AF23: 0.05476646324 | AG23: 2.047005203 | AH23: 1
B24: 21 | C24: 0.35199 | D24: 65.1 | E24: 2.28 | F24: -3.44 | G24: 67.14 | H24: 2.42 | I24: -8.45 | W24: 1.321470974 | X24: -0.5850568017 | Y24: 0.2613435697 | Z24: 0.2272290915 | AA24: -0.01050397956 | AB24: 0.790667866 | AC24: 0.154979729 | AD24: 0.03092448456 | AE24: 0.02337796458 | AF24: 4.995587473e-05 | AG24: 2.208620852 | AH24: 1
B25: 23 | C25: 0.35206 | D25: 69.87 | E25: 1.58 | F25: -2.14 | G25: 63.78 | H25: 2.25 | I25: 10.75 | W25: 0.04156646522 | X25: 1.340322 | Y25: 0.5754936223 | Z25: -1.4140982 | AA25: 0.004618975989 | AB25: 0.00041843983 | AC25: 0.4350759941 | AD25: 0.08020987863 | AE25: 0.4842905204 | AF25: 5.166997345e-06 | AG25: 4.129078799 | AH25: 2
B26: 24 | C26: 0.35207 | D26: 71.88 | E26: 2.29 | F26: -4.29 | G26: 63.94 | H26: 2.29 | I26: 9.33 | W26: 0.8468244352 | X26: 1.500528661 | Y26: 0.2382812996 | Z26: -1.39372872 | AA26: 0.7197502461 | AB26: 0.1307167596 | AC26: 0.4104243334 | AD26: 0.01034962064 | AE26: 0.3540796852 | AF26: 0.09442960115 | AG26: 5.485996027 | AH26: 2
B27: 25 | C27: 0.35208 | D27: 71.86 | E27: 2.01 | F27: -3.58 | G27: 63.49 | H27: 2.18 | I27: 10.43 | W27: 0.4669866945 | X27: 1.541251502 | Y27: 0.3961755564 | Z27: -1.52742077 | AA27: 0.5448205358 | AB27: 0.04053218176 | AC27: 0.4415074071 | AD27: 0.02917200781 | AE27: 0.4336190484 | AF27: 0.05516935495 | AG27: 5.380331464 | AH27: 2
B28: 26 | C28: 0.35209 | D28: 72.06 | E28: 2.1 | F28: -3.45 | G28: 63.66 | H28: 2.3 | I28: 10.74 | W28: 0.6156815797 | X28: 1.661112291 | Y28: 0.3698085602 | Z28: -1.460487426 | AA28: 0.5686276315 | AB28: 0.06613719275 | AC28: 0.4814280826 | AD28: 0.02386092942 | AE28: 0.3721594755 | AF28: 0.05641431974 | AG28: 5.731477128 | AH28: 2
B29: 27 | C29: 0.35213 | D29: 69.08 | E29: 1.25 | F29: -2.63 | G29: 63.12 | H29: 2.28 | I29: 7.93 | W29: -0.2097078949 | X29: 1.083391306 | Y29: 0.4708726463 | Z29: -1.270770588 | AA29: -0.4277635285 | AB29: 0.01358469865 | AC29: 0.3625693933 | AD29: 0.06849003248 | AE29: 0.4988325176 | AF29: 0.05652335795 | AG29: 3.237274695 | AH29: 2
B30: 28 | C30: 0.35215 | D30: 66.84 | E30: 2.1 | F30: 0.92 | G30: 63.61 | H30: 2.33 | I30: 9.6 | W30: -0.01245295097 | X30: 1.196591713 | Y30: 0.4629380637 | Z30: -0.4700211244 | AA30: 0.4859744054 | AB30: 7.37267124e-05 | AC30: 0.6807259293 | AD30: 0.101888717 | AE30: 0.1050304113 | AF30: 0.1122812157 | AG30: 2.103389435 | AH30: 2
B31: 29 | C31: 0.35219 | D31: 54.87 | E31: 1.12 | F31: -10.43 | G31: 57.49 | H31: 0.77 | I31: 0.15 | W31: -2.449247624 | X31: -2.024872689 | Y31: -1.68068478 | Z31: -0.8688504296 | AA31: -0.005871475874 | AB31: 0.4385559472 | AC31: 0.2997471477 | AD31: 0.2065057497 | AE31: 0.0551886352 | AF31: 2.520311233e-06 | AG31: 13.6785602 | AH31: 4
B32: 31 | C32: 0.35225 | D32: 53.83 | E32: 1.1 | F32: -8.24 | G32: 59.57 | H32: 0.72 | I32: -0.79 | W32: -2.475853569 | X32: -2.04877679 | Y32: -1.382048053 | Z32: -0.4392497619 | AA32: -0.1652279609 | AB32: 0.4920557594 | AC32: 0.3369408753 | AD32: 0.153324196 | AE32: 0.01548771964 | AF32: 0.002191449643 | AG32: 12.45763468 | AH32: 4
B33: 32 | C33: 0.35226 | D33: 56.93 | E33: 0.71 | F33: 8.39 | G33: 51.94 | H33: 0.84 | I33: -1.33 | W33: -4.025218096 | X33: -1.259035235 | Y33: 0.7849904065 | Z33: 0.5885028836 | AA33: 0.485591947 | AB33: 0.8533903848 | AC33: 0.08349196469 | AD33: 0.0324561955 | AE33: 0.01824173333 | AF33: 0.01241972169 | AG33: 18.98589557 | AH33: 4
B34: 33 | C34: 0.35227 | D34: 56.06 | E34: 0.6 | F34: -3.43 | G34: 56.63 | H34: 0.81 | I34: 10.99 | W34: -3.510845376 | X34: -0.7931571783 | Y34: -0.7555855757 | Z34: -1.038738421 | AA34: -0.1772031506 | AB34: 0.8421481425 | AC34: 0.04298170188 | AD34: 0.03900608894 | AE34: 0.07371866822 | AF34: 0.002145398476 | AG34: 14.63642159 | AH34: 4
B35: 37 | C35: 0.35237 | D35: 56.08 | E35: 0.93 | F35: -11.52 | G35: 55.48 | H35: 1.69 | I35: 3.91 | W35: -2.256502356 | X35: -1.118291685 | Y35: -2.226240489 | Z35: -0.8518531905 | AA35: -0.6196104476 | AB35: 0.4103613101 | AC35: 0.1007871157 | AD35: 0.3994284356 | AE35: 0.05848228512 | AF35: 0.03094085348 | AG35: 12.40809686 | AH35: 4
B36: 38 | C36: 0.3524 | D36: 63.52 | E36: 1.56 | F36: -9.34 | G36: 57.12 | H36: 0.71 | I36: 8.02 | W36: -2.003983499 | X36: -0.09159197386 | Y36: -1.26612082 | Z36: -1.514280218 | AA36: 0.8529639624 | AB36: 0.4643794083 | AC36: 0.0009700620353 | AD36: 0.1853680886 | AE36: 0.2651533811 | AF36: 0.08412906006 | AG36: 8.647992984 | AH36: 4
B37: 44 | C37: 0.35253 | D37: 56.74 | E37: 0.73 | F37: 8.7 | G37: 52.68 | H37: 0.99 | I37: -1.64 | W37: -4.031221974 | X37: -0.867771568 | Y37: 0.5450484038 | Z37: 1.082037301 | AA37: 0.2520060362 | AB37: 0.876752287 | AC37: 0.04062695896 | AD37: 0.01602778936 | AE37: 0.06316666483 | AF37: 0.003426299863 | AG37: 18.53516762 | AH37: 4
B38: 46 | C38: 0.35258 | D38: 60.35 | E38: 1.24 | F38: 5.77 | G38: 53.14 | H38: 0.83 | I38: -2.49 | W38: -3.332022738 | X38: -0.5376052535 | Y38: 0.3175125954 | Z38: 0.7819561354 | AA38: 0.8607321634 | AB38: 0.8643664139 | AC38: 0.02250137092 | AD38: 0.007848811276 | AE38: 0.04760436252 | AF38: 0.05767904142 | AG38: 12.84452444 | AH38: 4
B39: 48 | C39: 0.35264 | D39: 56.58 | E39: 0.77 | F39: 9.71 | G39: 54.31 | H39: 0.56 | I39: 0.48 | W39: -4.327691692 | X39: -0.6786793985 | Y39: 0.7087242091 | Z39: 1.124769206 | AA39: 0.4348993665 | AB39: 0.8856931455 | AC39: 0.02178211209 | AD39: 0.02375336772 | AE39: 0.05982703663 | AF39: 0.008944338076 | AG39: 21.14605434 | AH39: 4
B40: 50 | C40: 0.3527 | D40: 63.89 | E40: 3.62 | F40: -19.71 | G40: 63.89 | H40: 3.86 | I40: -7.22 | W40: 3.000389274 | X40: 0.3475323834 | Y40: -3.722674352 | Z40: 0.6864592434 | AA40: 0.08725053757 | AB40: 0.3837270613 | AC40: 0.005148228055 | AD40: 0.5907140676 | AE40: 0.02008615149 | AF40: 0.0003244915875 | AG40: 23.46025783 | AH40: 3
B41: 51 | C41: 0.3527 | D41: 61.91 | E41: 3.78 | F41: -18.04 | G41: 64.47 | H41: 3.68 | I41: -7.3 | W41: 2.801421142 | X41: 0.1225919203 | Y41: -3.639952468 | Z41: 1.02514916 | AA41: 0.3127412 | AB41: 0.3525433316 | AC41: 0.0006751175478 | AD41: 0.5951783508 | AE41: 0.04720954565 | AF41: 0.004393654444 | AG41: 22.26098102 | AH41: 3
B42: 53 | C42: 0.35275 | D42: 65.73 | E42: 2.61 | F42: 2.87 | G42: 64.96 | H42: 2.12 | I42: 10.47 | W42: -0.2978958799 | X42: 1.981993358 | Y42: -0.01994399135 | Z42: 0.7176644575 | AA42: 0.8608454437 | AB42: 0.01682779444 | AC42: 0.7449079249 | AD42: 7.542622275e-05 | AE42: 0.09766547834 | AF42: 0.1405233761 | AG42: 5.273534541 | AH42: 2
B43: 54 | C43: 0.35277 | D43: 67.61 | E43: 2.63 | F43: 2.26 | G43: 65.3 | H43: 2.45 | I43: 9.41 | W43: 0.1778029642 | X43: 2.26210122 | Y43: -0.01104636353 | Z43: 0.7058846374 | AA43: 0.6748402996 | AB43: 0.005180465123 | AC43: 0.838522708 | AD43: 1.999536901e-05 | AE43: 0.08165038198 | AF43: 0.07462644948 | AG43: 6.102520395 | AH43: 2
B44: 55 | C44: 0.35278 | D44: 66.01 | E44: 2.13 | F44: 1.47 | G44: 64.98 | H44: 2.44 | I44: 9.99 | W44: -0.296119116 | X44: 2.043444586 | Y44: -0.1285423676 | Z44: 0.5490946738 | AA44: 0.0926757871 | AB44: 0.01910394751 | AC44: 0.9097372085 | AD44: 0.003599836844 | AE44: 0.06568779596 | AF44: 0.00187121114 | AG44: 4.589969208 | AH44: 2
B45: 56 | C45: 0.35279 | D45: 66.13 | E45: 2.86 | F45: 1.76 | G45: 65.29 | H45: 2.22 | I45: 9.69 | W45: 0.05060275883 | X45: 2.053601498 | Y45: -0.2494599677 | Z45: 0.8159644487 | AA45: 1.002586317 | AB45: 0.000430139231 | AC45: 0.7084235817 | AD45: 0.01045351599 | AE45: 0.11184154 | AF45: 0.168851223 | AG45: 5.953047332 | AH45: 2
B46: 57 | C46: 0.3528 | D46: 67.17 | E46: 2.57 | F46: 2.48 | G46: 65.34 | H46: 1.95 | I46: 0 | W46: 0.05439698349 | X46: 1.377475512 | Y46: 0.2180243465 | Z46: 1.143010122 | AA46: 0.7534114767 | AB46: 0.0007742035409 | AC46: 0.4964474602 | AD46: 0.01243699632 | AE46: 0.3418264554 | AF46: 0.1485148846 | AG46: 3.822033427 | AH46: 2
B47: 59 | C47: 0.35286 | D47: 65.84 | E47: 0.85 | F47: 0.61 | G47: 64.09 | H47: 2.13 | I47: 7.11 | W47: -1.338946377 | X47: 1.635382801 | Y47: 0.1287746319 | Z47: 0.1403917114 | AA47: -1.156776506 | AB47: 0.306894203 | AC47: 0.4578267547 | AD47: 0.002838722567 | AE47: 0.003374001355 | AF47: 0.2290663183 | AG47: 5.84167893 | AH47: 2
B48: 60 | C48: 0.35287 | D48: 66.37 | E48: 0.81 | F48: 0.34 | G48: 65.14 | H48: 2.64 | I48: 8.41 | W48: -0.9028414941 | X48: 1.999067483 | Y48: 0.06502421163 | Z48: 0.1758164932 | AA48: -1.564029557 | AB48: 0.1117720938 | AC48: 0.547980715 | AD48: 0.00057977643 | AE48: 0.004238669861 | AF48: 0.3354287449 | AG48: 7.292721607 | AH48: 2
B49: 61 | C49: 0.35288 | D49: 64.96 | E49: 0.87 | F49: 1.09 | G49: 64.41 | H49: 2.62 | I49: 5.63 | W49: -1.021887052 | X49: 1.652813896 | Y49: 0.01827813578 | Z49: 0.5355393568 | AA49: -1.49250287 | AB49: 0.165998242 | AC49: 0.4342557789 | AD49: 5.310818922e-05 | AE49: 0.04559114307 | AF49: 0.3541017278 | AG49: 6.290748232 | AH49: 2
B50: 62 | C50: 0.35289 | D50: 64.6 | E50: 1.3 | F50: 1 | G50: 64.38 | H50: 2.29 | I50: 8.02 | W50: -1.085001671 | X50: 1.715116489 | Y50: -0.1304991271 | Z50: 0.5028466503 | AA50: -0.8064244624 | AB50: 0.2336207553 | AC50: 0.5837647325 | AD50: 0.003379604058 | AE50: 0.05017896883 | AF50: 0.1290559394 | AG50: 5.039058386 | AH50: 2
B51: 63 | C51: 0.35291 | D51: 66.18 | E51: 1 | F51: -0.26 | G51: 64.24 | H51: 1.95 | I51: 7.3 | W51: -1.317058492 | X51: 1.676680152 | Y51: -0.0106963195 | Z51: 0.09458966872 | AA51: -0.9290733843 | AB51: 0.3201548117 | AC51: 0.5188601949 | AD51: 2.111633978e-05 | AE51: 0.001651343102 | AF51: 0.1593125339 | AG51: 5.418138372 | AH51: 2
B52: li 49 | AH52: 2
B53: li 50 | AH53: 2
B54: li 51 | AH54: 2
B55: li 52 | AH55: 2
B56: li 53 | AH56: 2
B57: li 54 | AH57: 2
B58: li 55 | AH58: 2
B59: li 56 | AH59: 2
B60: li 57 | AH60: 2
B61: li 58 | AH61: 2
B62: li 59 | AH62: 2
B63: li 60 | AH63: 2
B64: li 61 | AH64: 2
B65: li 62 | AH65: 2
B66: li 63 | AH66: 3
B67: li 64 | AH67: 3
B68: li 65 | AB68: =W68^2/$AG68 ->  | AC68: =X68^2/$AG68 ->  | AD68: =Y68^2/$AG68 ->  | AE68: =Z68^2/$AG68 ->  | AF68: =AA68^2/$AG68 ->  | AG68: =W68^2+X68^2+Y68^2+Z68^2+AA68^2 ->  | AH68: 3
B69: li 66 | AH69: 3
B70: li 67 | AH70: 3
B71: li 68 | AH71: 3
B72: li 69 | AH72: 3
B73: li 70 | AH73: 3
B74: li 71 | AH74: 3
B75: li 72 | AH75: 3
B76: li 73 | AH76: 3
B77: li 74 | AH77: 3
B78: li 75 | AH78: 3
B79: li 76 | AH79: 3
B80: li 77 | AH80: 3
B81: li 78 | AH81: 3
B82: li 79 | AH82: 3
B83: li 80 | AH83: 3
B84: li 81 | AH84: 3
B85: li 82 | AH85: 3
B86: li 83 | AH86: 3
B87: li 84 | AH87: 3
B88: li 85 | AH88: 3
B89: li 86 | AH89: 3
B90: li 87 | AH90: 3
B91: li 88 | AH91: 3
B92: li 89 | AH92: 3
B93: li 90 | AH93: 3
B94: li 91 | AH94: 3
B95: li 92 | AH95: 3
B96: li 93 | AH96: 3
B97: li 94 | AH97: 3
B98: li 95 | AH98: 3
B99: li 96 | AH99: 3
B100: li 97 | AH100: 3
B101: li 98 | AH101: 3
B102: li 99 | AH102: 3
B103: li 100 | AH103: 3
B104: li 101 | AH104: 3
B105: li 102 | AH105: 3
B106: li 103 | AH106: 3
B107: li 104 | AH107: 3
B108: li 105 | AH108: 3
B109: li 106 | AH109: 3
B110: li 107 | AH110: 3
B111: li 108 | AH111: 3
B112: li 109 | AH112: 3
B113: li 110 | AH113: 3
B114: li 111 | AH114: 3
B115: li 112 | AH115: 3
B116: li 113 | AH116: 3
B117: li 114 | AH117: 3
B118: li 115 | AH118: 3
B119: li 116 | AH119: 3
B120: li 117 | AH120: 3
B121: li 118 | AH121: 3
B122: li 119 | AH122: 2
B123: li 120 | AH123: 3
B124: li 121 | AH124: 1
B125: li 122 | AH125: 1
B126: li 123 | AH126: 4
B127: li 124 | AH127: 5
B128: li 125 | AH128: 5
B129: li 126 | AH129: 2
B130: li 127 | AH130: 5
B131: li 128 | AH131: 3
B132: li 129 | AB132: =W132^2/$AG132 ->  | AC132: =X132^2/$AG132 ->  | AD132: =Y132^2/$AG132 ->  | AE132: =Z132^2/$AG132 ->  | AF132: =AA132^2/$AG132 ->  | AG132: =W132^2+X132^2+Y132^2+Z132^2+AA132^2 ->  | AH132: 3
B133: li 130 | AH133: 6
B134: li 131 | AH134: 4
B135: li 132 | AH135: 5
B136: li 133 | AH136: 5
B137: li 134 | AH137: 5
B138: li 135 | AH138: 3
B139: li 136 | AH139: 4
B140: li 137 | AH140: 3
B141: li 138 | AH141: 4
B142: li 139 | AH142: 1
B143: li 140 | AH143: 1
B144: li 141 | AH144: 3
B145: li 142 | AH145: 7
B146: li 143 | AH146: 4
B147: li 144 | AH147: 3
B148: li 145 | AH148: 3
B149: li 146 | AH149: 1
B150: li 147 | AH150: 6
B151: li 148 | AH151: 2
B152: li 149 | AH152: 2
B153: li 150 | AH153: 6
B154: li 151 | AH154: 2
B155: li 152 | AH155: 4
B156: li 153 | AH156: 5
B157: li 154 | AH157: 3
B158: li 155 | AH158: 3
B159: li 156 | AH159: 7
B160: li 157 | AH160: 4
B161: li 158 | AH161: 4
B162: li 159 | AH162: 2
B163: li 160 | AH163: 5
B164: li 161 | AH164: 5
B165: li 162 | AH165: 4
B166: li 163 | AH166: 6
B167: li 164 | AH167: 3
B168: li 165 | AH168: 7
B169: li 166 | AH169: 5
B170: li 167 | AH170: 5
B171: li 168 | AH171: 4
B172: li 169 | AH172: 5
B173: li 170 | AH173: 4
B174: li 171 | AH174: 5
B175: li 172 | AH175: 5
B176: li 173 | AH176: 5
B177: li 174 | AH177: 4
B178: li 175 | AH178: 3
B179: li 176 | AH179: 3
B180: li 177 | AH180: 7
B181: li 178 | AH181: 6
B182: li 179 | AH182: 7
B183: li 180 | AH183: 7
B184: li 181 | AH184: 5
B185: li 182 | AH185: 2
B186: li 183 | AH186: 3
B187: li 184 | AH187: 2
B188: li 185 | AH188: 6
B189: li 186 | AH189: 3
B190: li 187 | AH190: 3
B191: li 188 | AH191: 1
B192: li 189 | AH192: 1
B193: li 190 | AH193: 1
B194: li 191 | AH194: 4
B195: li 192 | AH195: 5
B196: li 193 | AB196: =W196^2/$AG196 ->  | AC196: =X196^2/$AG196 ->  | AD196: =Y196^2/$AG196 ->  | AE196: =Z196^2/$AG196 ->  | AF196: =AA196^2/$AG196 ->  | AG196: =W196^2+X196^2+Y196^2+Z196^2+AA196^2 ->  | AH196: 1
B197: li 194 | AH197: 7
B198: li 195 | AH198: 4
B199: li 196 | AH199: 3
B200: li 197 | AH200: 7
... 904 more rows

Sheet centrée_réduite
A1: =données!A1 -> nb lignes | B1: =données!B1 -> moyennes | C1: =AVERAGE(OFFSET(C$4,0,0,$A$2,1)) -> -1.342167118e-13 | D1: =AVERAGE(OFFSET(D$4,0,0,$A$2,1)) -> 1.890848589e-15 | E1: 3.006854025e-16 | F1: -9.020562075e-17 | G1: 4.679850257e-15 | H1: -2.197316403e-16 | I1: 0
A2: =données!A2 -> 48 | B2: =données!B2 -> écarts type | C2: =STDEV(OFFSET(C$4,0,0,$A$2,1)) -> 1 | D2: =STDEV(OFFSET(D$4,0,0,$A$2,1)) -> 1 | E2: 1 | F2: 1 | G2: 1 | H2: 1 | I2: 1
A3: =données!A3 -> nb colonnes | B3: =données!B3 -> numéro | C3: =données!C3 -> heure | D3: =données!D3 -> diamètre1 | E3: =données!E3 -> décalage1 | F3: =données!F3 -> aspérités1 | G3: =données!G3 -> diamètre2 | H3: =données!H3 -> décalage2 | I3: =données!I3 -> aspérités2 | J3: =données!J3 -> 0 | K3: =données!K3 -> 0 | L3: =données!L3 -> 0 | M3: =données!M3 -> 0 | N3: =données!N3 -> 0 | O3: =données!O3 -> 0 | P3: =données!P3 -> 0 | Q3: =données!Q3 -> 0 | R3: =données!R3 -> 0 | S3: =données!S3 -> 0 | T3: =données!T3 -> 0 | U3: =données!U3 -> 0 | V3: =données!V3 -> 0
A4: =données!A4 -> 7 | B4: =données!B4 -> 1 | C4: =(mdonnées-données!C1:V1)/données!C2:V2 -> -1.241536899 | D4: 0.1274746705 | E4: 0.4804403521 | F4: -0.2504888041 | G4: 0.7209821425 | H4: 0.3323105842 | I4: -0.9625512999
B5: =données!B5 -> 2 | C5: -1.191076466 | D5: 0.2066589365 | E5: 0.3416850157 | F5: -0.1559018064 | G5: 0.6271721985 | H5: 0.6055903433 | I5: -0.8756841556
B6: =données!B6 -> 3 | C6: -1.165846249 | D6: 0.1946613204 | E6: 0.5636935539 | F6: -0.1213411726 | G6: 0.668623104 | H6: 0.4761420364 | I6: -0.9987459434
B7: =données!B7 -> 4 | C7: -1.140616033 | D7: 0.2306541686 | E7: 0.216805213 | F7: -0.2159281703 | G7: 0.7057107563 | H7: 0.2603948582 | I7: -0.9480734425
B8: =données!B8 -> 5 | C8: -1.064925384 | D8: 0.2186565525 | E8: 0.2723073476 | F8: -0.2868684186 | G8: 0.6402619581 | H8: 0.5192914721 | I8: -1.05183142
B9: =données!B9 -> 6 | C9: -1.039695167 | D9: 0.2090584597 | E9: 0.522066953 | F9: -0.1795485558 | G9: 0.8649694984 | H9: -0.2430152244 | I9: -0.9335955851
B10: =données!B10 -> 7 | C10: -1.014464951 | D10: 0.2330536918 | E10: 0.5081914194 | F10: -0.16499671 | G10: 0.8300634728 | H10: 0.6199734886 | I10: -1.012017313
B11: =données!B11 -> 8 | C11: -0.9892347346 | D11: 0.1826637044 | E11: 0.4249382175 | F11: -0.2122902089 | G11: 0.7078923829 | H11: 0.6199734886 | I11: -0.9818551098
B12: =données!B12 -> 9 | C12: -0.9640045182 | D12: 0.2258551221 | E12: 0.6469467557 | F12: -0.1177032111 | G12: 0.8540613654 | H12: -0.084800627 | I12: -0.9697902286
B13: =données!B13 -> 10 | C13: -0.888313869 | D13: 0.1370727634 | E13: 0.1613030785 | F13: -0.197738363 | G13: 0.6009926792 | H13: 0.5624409077 | I13: -0.9770291573
B14: =données!B14 -> 11 | C14: -0.8630836526 | D14: 0.1778646579 | E14: 0.2445562803 | F14: -0.205014286 | G14: 0.7558881682 | H14: 0.2316285677 | I14: -1.030114634
B15: =données!B15 -> 12 | C15: -0.8378534362 | D15: 0.1226756241 | E15: 0.3555605494 | F15: -0.1868244787 | G15: 0.7929758205 | H15: 0.1740959869 | I15: -1.008397848
B16: =données!B16 -> 13 | C16: -0.8378534362 | D16: -0.3668271107 | E16: 0.3833116166 | F16: 0.2952054136 | G16: 0.8235185929 | H16: 0.6055903433 | I16: -1.061483325
B17: =données!B17 -> 14 | C17: -0.8126232198 | D17: 0.2042594133 | E17: 0.4526892848 | F17: -0.06313378935 | G17: 0.8322450994 | H17: -0.07041748178 | I17: -0.9625512999
B18: =données!B18 -> 15 | C18: -0.7873930034 | D18: 0.1226756241 | E18: 0.02254774216 | F18: -0.2450318619 | G18: 0.6926209966 | H18: 0.7062723599 | I18: -0.8720646912
B19: =données!B19 -> 16 | C19: -0.762162787 | D19: 0.132273717 | E19: 0.3139339485 | F19: -0.07404767371 | G19: 0.7318902755 | H19: 0.3466937295 | I19: -1.038560051
B20: =données!B20 -> 17 | C20: -0.7369325706 | D20: 0.2138575061 | E20: 0.5081914194 | F20: -0.1631777293 | G20: 0.8846041379 | H20: -0.02726804614 | I20: -0.8708582031
B21: =données!B21 -> 18 | C21: -0.6864721378 | D21: 0.2498503542 | E21: 0.4110626839 | F21: -0.1686346714 | G21: 0.8780592581 | H21: 0.2028622773 | I21: -0.869651715
B22: =données!B22 -> 19 | C22: -0.6612419214 | D22: 0.2090584597 | E22: 0.5359424866 | F22: -0.1995573438 | G22: 0.6424435847 | H22: 0.447375746 | I22: -0.8865425486
B23: =données!B23 -> 20 | C23: -0.636011705 | D23: -0.3452314018 | E23: 0.05029880942 | F23: 0.1351351097 | G23: 0.8235185929 | H23: 0.116563406 | I23: -0.9577253475
B24: =données!B24 -> 21 | C24: -0.6107814886 | D24: 0.20185989 | E24: 0.5498180203 | F24: -0.1813675365 | G24: 0.679531237 | H24: 0.4617588912 | I24: -0.8877490367
B25: =données!B25 -> 23 | C25: -0.4341699738 | D25: 1.346432461 | E25: -0.4214693341 | F25: 0.05509995781 | G25: -0.05349530238 | H25: 0.2172454225 | I25: 1.428708146
B26: =données!B26 -> 24 | C26: -0.4089397574 | D26: 1.828736626 | E26: 0.5636935539 | F26: -0.3359808982 | G26: -0.0185892767 | H26: 0.2747780034 | I26: 1.257386833
B27: =données!B27 -> 25 | C27: -0.383709541 | D27: 1.82393758 | E27: 0.1751786121 | F27: -0.2068332667 | G27: -0.1167624739 | H27: 0.116563406 | I27: 1.390100526
B28: =données!B28 -> 26 | C28: -0.3584793247 | D28: 1.871928044 | E28: 0.3000584148 | F28: -0.1831865172 | G28: -0.07967482165 | H28: 0.2891611486 | I28: 1.427501658
B29: =données!B29 -> 27 | C29: -0.2575584591 | D29: 1.156870128 | E29: -0.8793619441 | F29: -0.03403009774 | G29: -0.1974826583 | H29: 0.2603948582 | I29: 1.088478497
B30: =données!B30 -> 28 | C30: -0.2070980263 | D30: 0.6193769286 | E30: 0.3000584148 | F30: 0.6117080599 | G30: -0.09058295467 | H30: 0.3323105842 | I30: 1.289962012
B31: =données!B31 -> 29 | C31: -0.1061771607 | D31: -2.252852354 | E31: -1.059743881 | F31: -1.452835064 | G31: -1.425738437 | H31: -1.911460069 | I31: 0.1498307429
B32: =données!B32 -> 31 | C32: 0.04520413771 | D32: -2.502402768 | E32: -1.087494949 | F32: -1.054478285 | G32: -0.9719601032 | H32: -1.983375795 | I32: 0.03642086
B33: =données!B33 -> 32 | C33: 0.07043435411 | D33: -1.758550573 | E33: -1.62864076 | F33: 1.970486662 | G33: -2.636541203 | H33: -1.810778053 | I33: -0.02872949826
B34: =données!B34 -> 33 | C34: 0.09566457051 | D34: -1.967309092 | E34: -1.78127163 | F34: -0.1795485558 | G34: -1.613358325 | H34: -1.853927489 | I34: 1.45766386
B35: =données!B35 -> 37 | C35: 0.3479667345 | D35: -1.962510045 | E35: -1.32337902 | F35: -1.651103963 | G35: -1.864245385 | H35: -0.5882107095 | I35: 0.6034702744
B36: =données!B36 -> 38 | C36: 0.4236573837 | D36: -0.1772647771 | E36: -0.4492204014 | F36: -1.254566165 | G36: -1.506458622 | H36: -1.997758941 | I36: 1.09933689
B37: =données!B37 -> 44 | C37: 0.7516501968 | D37: -1.804141514 | E37: -1.600889693 | F37: 2.026875064 | G37: -2.475100834 | H37: -1.595030875 | I37: -0.06613062985
B38: =données!B38 -> 46 | C38: 0.8778012788 | D38: -0.9379136347 | E38: -0.8932374777 | F38: 1.493913712 | G38: -2.37474601 | H38: -1.825161198 | I38: -0.1686821197
B39: =données!B39 -> 48 | C39: 1.029182577 | D39: -1.842533885 | E39: -1.545387559 | F39: 2.210592118 | G39: -2.119495698 | H39: -2.213506119 | I39: 0.1896448507
B40: =données!B40 -> 50 | C40: 1.180563876 | D40: -0.08848241837 | E40: 2.409139527 | F40: -3.140849177 | G40: -0.02949740973 | H40: 2.532931802 | I40: -0.7393509985
B41: =données!B41 -> 51 | C41: 1.180563876 | D41: -0.563588014 | E41: 2.631148065 | F41: -2.837079396 | G41: 0.09703693338 | H41: 2.274035188 | I41: -0.7490029034
B42: =données!B42 -> 53 | C42: 1.306714958 | D42: 0.3530298523 | E42: 1.00771063 | F42: 0.9664093014 | G42: 0.203936637 | H42: 0.03026453472 | I42: 1.394926478
B43: =données!B43 -> 54 | C43: 1.35717539 | D43: 0.8041402158 | E43: 1.035461697 | F43: 0.8554514771 | G43: 0.2781119416 | H43: 0.5049083268 | I43: 1.267038738
B44: =données!B44 -> 55 | C44: 1.382405607 | D44: 0.4202165022 | E44: 0.3416850157 | F44: 0.7117519998 | G44: 0.2082998903 | H44: 0.4905251816 | I44: 1.337015049
B45: =données!B45 -> 56 | C45: 1.407635823 | D45: 0.4490107807 | E45: 1.354598971 | F45: 0.7645024408 | G45: 0.275930315 | H45: 0.1740959869 | I45: 1.300820405
B46: =données!B46 -> 57 | C46: 1.43286604 | D46: 0.6985611945 | E46: 0.9522084956 | F46: 0.8954690531 | G46: 0.286838448 | H46: -0.2142489339 | I46: 0.1317334211
B47: =données!B47 -> 59 | C47: 1.584247338 | D47: 0.3794246076 | E47: -1.434383289 | F47: 0.5553196574 | G47: 0.01413512238 | H47: 0.04464767994 | I47: 0.9895464715
B48: =données!B48 -> 60 | C48: 1.609477554 | D48: 0.5065993377 | E48: -1.489885424 | F48: 0.5062071778 | G48: 0.2432059159 | H48: 0.7781880859 | I48: 1.146389927
B49: =données!B49 -> 61 | C49: 1.634707771 | D49: 0.1682665651 | E49: -1.406632222 | F49: 0.6426307322 | G49: 0.08394717375 | H49: 0.7494217955 | I49: 0.8109862304
B50: =données!B50 -> 62 | C50: 1.659937987 | D50: 0.08188372954 | E50: -0.8099842759 | F50: 0.6262599057 | G50: 0.07740229393 | H50: 0.2747780034 | I50: 1.09933689
B51: =données!B51 -> 63 | C51: 1.71039842 | D51: 0.4610083967 | E51: -1.226250285 | F51: 0.3970683342 | G51: 0.04685952146 | H51: -0.2142489339 | I51: 1.012469746
B52: =données!B52 -> li 49
B53: =données!B53 -> li 50
B54: =données!B54 -> li 51
B55: =données!B55 -> li 52
B56: =données!B56 -> li 53
B57: =données!B57 -> li 54
B58: =données!B58 -> li 55
B59: =données!B59 -> li 56
B60: =données!B60 -> li 57
B61: =données!B61 -> li 58
B62: =données!B62 -> li 59
B63: =données!B63 -> li 60
B64: =données!B64 -> li 61
B65: =données!B65 -> li 62
B66: =données!B66 -> li 63
B67: =données!B67 -> li 64
B68: =données!B68 -> li 65
B69: =données!B69 -> li 66
B70: =données!B70 -> li 67
B71: =données!B71 -> li 68
B72: =données!B72 -> li 69
B73: =données!B73 -> li 70
B74: =données!B74 -> li 71
B75: =données!B75 -> li 72
B76: =données!B76 -> li 73
B77: =données!B77 -> li 74
B78: =données!B78 -> li 75
B79: =données!B79 -> li 76
B80: =données!B80 -> li 77
B81: =données!B81 -> li 78
B82: =données!B82 -> li 79
B83: =données!B83 -> li 80
B84: =données!B84 -> li 81
B85: =données!B85 -> li 82
B86: =données!B86 -> li 83
B87: =données!B87 -> li 84
B88: =données!B88 -> li 85
B89: =données!B89 -> li 86
B90: =données!B90 -> li 87
B91: =données!B91 -> li 88
B92: =données!B92 -> li 89
B93: =données!B93 -> li 90
B94: =données!B94 -> li 91
B95: =données!B95 -> li 92
B96: =données!B96 -> li 93
B97: =données!B97 -> li 94
B98: =données!B98 -> li 95
B99: =données!B99 -> li 96
B100: =données!B100 -> li 97
B101: =données!B101 -> li 98
B102: =données!B102 -> li 99
B103: =données!B103 -> li 100
B104: =données!B104 -> li 101
B105: =données!B105 -> li 102
B106: =données!B106 -> li 103
B107: =données!B107 -> li 104
B108: =données!B108 -> li 105
B109: =données!B109 -> li 106
B110: =données!B110 -> li 107
B111: =données!B111 -> li 108
B112: =données!B112 -> li 109
B113: =données!B113 -> li 110
B114: =données!B114 -> li 111
B115: =données!B115 -> li 112
B116: =données!B116 -> li 113
B117: =données!B117 -> li 114
B118: =données!B118 -> li 115
B119: =données!B119 -> li 116
B120: =données!B120 -> li 117
B121: =données!B121 -> li 118
B122: =données!B122 -> li 119
B123: =données!B123 -> li 120
B124: =données!B124 -> li 121
B125: =données!B125 -> li 122
B126: =données!B126 -> li 123
B127: =données!B127 -> li 124
B128: =données!B128 -> li 125
B129: =données!B129 -> li 126
B130: =données!B130 -> li 127
B131: =données!B131 -> li 128
B132: =données!B132 -> li 129
B133: =données!B133 -> li 130
B134: =données!B134 -> li 131
B135: =données!B135 -> li 132
B136: =données!B136 -> li 133
B137: =données!B137 -> li 134
B138: =données!B138 -> li 135
B139: =données!B139 -> li 136
B140: =données!B140 -> li 137
B141: =données!B141 -> li 138
B142: =données!B142 -> li 139
B143: =données!B143 -> li 140
B144: =données!B144 -> li 141
B145: =données!B145 -> li 142
B146: =données!B146 -> li 143
B147: =données!B147 -> li 144
B148: =données!B148 -> li 145
B149: =données!B149 -> li 146
B150: =données!B150 -> li 147
B151: =données!B151 -> li 148
B152: =données!B152 -> li 149
B153: =données!B153 -> li 150
B154: =données!B154 -> li 151
B155: =données!B155 -> li 152
B156: =données!B156 -> li 153
B157: =données!B157 -> li 154
B158: =données!B158 -> li 155
B159: =données!B159 -> li 156
B160: =données!B160 -> li 157
B161: =données!B161 -> li 158
B162: =données!B162 -> li 159
B163: =données!B163 -> li 160
B164: =données!B164 -> li 161
B165: =données!B165 -> li 162
B166: =données!B166 -> li 163
B167: =données!B167 -> li 164
B168: =données!B168 -> li 165
B169: =données!B169 -> li 166
B170: =données!B170 -> li 167
B171: =données!B171 -> li 168
B172: =données!B172 -> li 169
B173: =données!B173 -> li 170
B174: =données!B174 -> li 171
B175: =données!B175 -> li 172
B176: =données!B176 -> li 173
B177: =données!B177 -> li 174
B178: =données!B178 -> li 175
B179: =données!B179 -> li 176
B180: =données!B180 -> li 177
B181: =données!B181 -> li 178
B182: =données!B182 -> li 179
B183: =données!B183 -> li 180
B184: =données!B184 -> li 181
B185: =données!B185 -> li 182
B186: =données!B186 -> li 183
B187: =données!B187 -> li 184
B188: =données!B188 -> li 185
B189: =données!B189 -> li 186
B190: =données!B190 -> li 187
B191: =données!B191 -> li 188
B192: =données!B192 -> li 189
B193: =données!B193 -> li 190
B194: =données!B194 -> li 191
B195: =données!B195 -> li 192
B196: =données!B196 -> li 193
B197: =données!B197 -> li 194
B198: =données!B198 -> li 195
B199: =données!B199 -> li 196
B200: =données!B200 -> li 197
... 1004 more rows

Sheet var_vp
A6: =données!A1 -> nb lignes | B6: =données!B1 -> moyennes | E6: =nc -> 7
A7: =nl -> 48 | B7: =données!B2 -> écarts type
A8: =données!A3 -> nb colonnes | B8: =données!B3 -> numéro | D8: =données!C3 -> heure | E8: =données!D3 -> diamètre1 | F8: =données!E3 -> décalage1 | G8: =données!F3 -> aspérités1 | H8: =données!G3 -> diamètre2 | I8: =données!H3 -> décalage2 | J8: =données!I3 -> aspérités2 | K8: =données!J3 -> 0 | L8: =données!K3 -> 0 | M8: =données!L3 -> 0 | N8: =données!M3 -> 0 | O8: =données!N3 -> 0 | P8: =données!O3 -> 0 | Q8: =données!P3 -> 0 | R8: =données!Q3 -> 0 | S8: =données!R3 -> 0 | T8: =données!S3 -> 0 | U8: =données!T3 -> 0 | V8: =données!U3 -> 0 | W8: =données!V3 -> 0
A9: =nc -> 7 | B9: =D8 -> heure | D9: =1/(nl-1)*MMULT(TRANSPOSE(mcr),mcr) -> 1 | E9: -0.1132168345 | F9: -0.2081185884 | G9: 0.2206128086 | H9: -0.404534022 | I9: -0.07431489026 | J9: 0.6436812908
B10: =E8 -> diamètre1 | D10: -0.1132168345 | E10: 1 | F10: 0.4533481282 | G10: 0.008570595861 | H10: 0.6417456274 | I10: 0.6103961303 | J10: 0.1908986312
B11: =F8 -> décalage1 | D11: -0.2081185884 | E11: 0.4533481282 | F11: 1 | G11: -0.4507468807 | H11: 0.6210804495 | I11: 0.6955184615 | J11: -0.3529689821
B12: =G8 -> aspérités1 | D12: 0.2206128086 | E12: 0.008570595861 | F12: -0.4507468807 | G12: 1 | H12: -0.2362508508 | I12: -0.4125103171 | J12: 0.2429288521
B13: =H8 -> diamètre2 | D13: -0.404534022 | E13: 0.6417456274 | F13: 0.6210804495 | G13: -0.2362508508 | H13: 1 | I13: 0.7408236782 | J13: -0.4089687844
B14: =I8 -> décalage2 | D14: -0.07431489026 | E14: 0.6103961303 | F14: 0.6955184615 | G14: -0.4125103171 | H14: 0.7408236782 | I14: 1 | J14: -0.2269348761
B15: =J8 -> aspérités2 | D15: 0.6436812908 | E15: 0.1908986312 | F15: -0.3529689821 | G15: 0.2429288521 | H15: -0.4089687844 | I15: -0.2269348761 | J15: 1
B16: =K8 -> 0
B17: =L8 -> 0
B18: =M8 -> 0
B19: =N8 -> 0
B20: =O8 -> 0
B21: =P8 -> 0
B22: =Q8 -> 0
B23: =R8 -> 0
B24: =S8 -> 0
B25: =T8 -> 0
B26: =U8 -> 0
B27: =V8 -> 0
B28: =W8 -> 0
G30: =nc -> 7
A32: somme vp | B32: =SUM(OFFSET(D32,0,0,1,nc)) -> 7 | C32: =SymmetricEigenvectors(nc,varcov) -> Eigenvalues: | D32: 3.312980307 | E32: 1.596956468 | F32: 0.9926477786 | G32: 0.529356756 | H32: 0.3244114883 | I32: 0.1575013825 | J32: 0.08614581889
B34: =B9 -> heure | C34: Eigenvectors: | D34: -0.2610855952 | E34: 0.5232453333 | F34: -0.3989677989 | G34: 0.5353430804 | H34: -0.1576538316 | I34: 0.2057571922 | J34: -0.3809072882
B35: diamètre1 | D35: 0.3375489394 | E35: 0.4948622598 | F35: 0.3542508413 | G35: -0.3558641514 | H35: 0.122672756 | I35: -0.1958441788 | J35: -0.5793406226
B36: décalage1 | D36: 0.4571014561 | E36: 0.06970378137 | F36: -0.230144972 | G36: 0.2817201863 | H36: 0.789230044 | I36: 0.09840718993 | J36: 0.1459405115
B37: aspérités1 | D37: -0.2749754105 | E37: 0.1881129657 | F37: 0.7438712254 | G37: 0.4931797214 | H37: 0.1570000141 | I37: -0.1255551244 | J37: 0.2280752169
B38: diamètre2 | D38: 0.4886323302 | E38: 0.076561549 | F38: 0.2648744286 | G38: 0.0770367264 | H38: -0.3572919324 | I38: 0.7288800531 | J38: 0.1426884654
B39: décalage2 | D39: 0.4675138716 | E39: 0.2559534107 | F39: -0.1604331997 | G39: 0.219819526 | H39: -0.4140473134 | I39: -0.5798959816 | J39: 0.3662576534
B40: aspérités2 | D40: -0.2757009861 | E40: 0.6080351476 | F40: -0.1145541547 | G40: -0.4581710486 | H40: 0.1160641845 | I40: 0.1622204978 | J40: 0.5398633869
B41: 0
B42: 0
B43: 0
B44: 0
B45: 0
B46: 0
B47: 0
B48: 0
B49: 0
B50: 0
B51: 0
B52: 0
B53: 0
D56: axe 1 | E56: axe 2 | F56: axe 3 | G56: axe 4 | H56: axe 5 | I56: axe 6 | J56: axe 7 | K56: axe 8 | L56: axe 9 | M56: axe 10 | N56: axe 11 | O56: axe 12 | P56: axe 13 | Q56: axe 14 | R56: axe 15 | S56: axe 16 | T56: axe 17 | U56: axe 18 | V56: axe 19 | W56: axe 20
C57: information axe | D57: =D32/$B$32 -> 0.473282901 | E57: 0.2281366383 | F57: 0.1418068255 | G57: 0.07562239372 | H57: 0.04634449833 | I57: 0.0225001975 | J57: 0.01230654556
C58: information cumulée | D58: =D57 -> 0.473282901 | E58: =E57+D58 -> 0.7014195394 | F58: =F57+E58 -> 0.8432263649 | G58: 0.9188487586 | H58: 0.9651932569 | I58: 0.9876934544 | J58: 1

Sheet calculs (hidden)
A1: données pour faire le cercle des correllations variable | F1: vecteurs à afficher
E2: 3 | F2: 1 | G2: 2
A3: =2*PI()/24 -> 0.2617993878 | B3: x | C3: y | E3: valeur propre | F3: =INDEX(var_vp!$D$32:$W$32,calculs!F2)^0.5 -> 1.820159418 | G3: =INDEX(var_vp!$D$32:$W$32,calculs!G2)^0.5 -> 1.26370743 | I3: axe1
A4: angle | B4: cosinus | C4: sinus | F4: =ROUND(INDEX(var_vp!$D$57:$W$57,calculs!F2)*100,0) -> 47 | G4: =ROUND(INDEX(var_vp!$D$57:$W$57,calculs!G2)*100,0) -> 23 | I4: axe2
A5: 0 | B5: =COS(A5) -> 1 | C5: =SIN(A5) -> 0 | H5: vecteur*valeur | I5: axe3
A6: =$A$3+A5 -> 0.2617993878 | B6: =COS(A6) -> 0.9659258263 | C6: =SIN(A6) -> 0.2588190451 | E6: ="information totale "&F4+G4&"%" -> information totale 70% | F6: ="axe"&F2&" "&F4&"%" -> axe1 47% | G6: ="axe"&G2&" "&G4&"%" -> axe2 23% | I6: axe4
A7: =$A$3+A6 -> 0.5235987756 | B7: 0.8660254038 | C7: 0.5 | E7: =var_vp!B9 -> heure | F7: =INDEX(var_vp!D34:W34,calculs!$F$2)*calculs!$F$3 -> -0.475217405 | G7: =INDEX(var_vp!D34:W34,calculs!$G$2)*calculs!$G$3 -> 0.6612290153 | H7: =F7^2+G7^2 -> 0.6630553927 | I7: axe5
A8: 0.7853981634 | B8: 0.7071067812 | C8: 0.7071067812 | E8: =var_vp!B10 -> diamètre1 | F8: =INDEX(var_vp!D35:W35,calculs!$F$2)*calculs!$F$3 -> 0.6143928811 | G8: =INDEX(var_vp!D35:W35,calculs!$G$2)*calculs!$G$3 -> 0.6253611145 | H8: =F8^2+G8^2 -> 0.7685551359
A9: 1.047197551 | B9: 0.5 | C9: 0.8660254038 | E9: =var_vp!B11 -> décalage1 | F9: =INDEX(var_vp!D36:W36,calculs!$F$2)*calculs!$F$3 -> 0.8319975203 | G9: =INDEX(var_vp!D36:W36,calculs!$G$2)*calculs!$G$3 -> 0.08808518641 | H9: 0.6999788738
A10: 1.308996939 | B10: 0.2588190451 | C10: 0.9659258263 | E10: =var_vp!B12 -> aspérités1 | F10: =INDEX(var_vp!D37:W37,calculs!$F$2)*calculs!$F$3 -> -0.5004990832 | G10: =INDEX(var_vp!D37:W37,calculs!$G$2)*calculs!$G$3 -> 0.2377197524 | H10: 0.307010013
A11: 1.570796327 | B11: 2.833020277e-16 | C11: 1 | E11: =var_vp!B13 -> diamètre2 | F11: =INDEX(var_vp!D38:W38,calculs!$F$2)*calculs!$F$3 -> 0.8893887379 | G11: =INDEX(var_vp!D38:W38,calculs!$G$2)*calculs!$G$3 -> 0.09675139831 | H11: 0.8003731601
A12: 1.832595715 | B12: -0.2588190451 | C12: 0.9659258263 | E12: =var_vp!B14 -> décalage2 | F12: =INDEX(var_vp!D39:W39,calculs!$F$2)*calculs!$F$3 -> 0.8509497764 | G12: =INDEX(var_vp!D39:W39,calculs!$G$2)*calculs!$G$3 -> 0.3234502269 | H12: 0.8287355712
A13: 2.094395102 | B13: -0.5 | C13: 0.8660254038 | E13: =var_vp!B15 -> aspérités2 | F13: =INDEX(var_vp!D40:W40,calculs!$F$2)*calculs!$F$3 -> -0.5018197464 | G13: =INDEX(var_vp!D40:W40,calculs!$G$2)*calculs!$G$3 -> 0.7683785337 | H13: 0.8422286289
A14: 2.35619449 | B14: -0.7071067812 | C14: 0.7071067812 | E14: =var_vp!B16 -> 0 | F14: =INDEX(var_vp!D41:W41,calculs!$F$2)*calculs!$F$3 ->  | G14: =INDEX(var_vp!D41:W41,calculs!$G$2)*calculs!$G$3 -> 
A15: 2.617993878 | B15: -0.8660254038 | C15: 0.5 | E15: =var_vp!B17 -> 0 | F15: =INDEX(var_vp!D42:W42,calculs!$F$2)*calculs!$F$3 ->  | G15: =INDEX(var_vp!D42:W42,calculs!$G$2)*calculs!$G$3 -> 
A16: 2.879793266 | B16: -0.9659258263 | C16: 0.2588190451 | E16: =var_vp!B18 -> 0 | F16: =INDEX(var_vp!D43:W43,calculs!$F$2)*calculs!$F$3 ->  | G16: =INDEX(var_vp!D43:W43,calculs!$G$2)*calculs!$G$3 -> 
A17: 3.141592654 | B17: -1 | C17: -3.215743644e-16 | E17: =var_vp!B19 -> 0 | F17: =INDEX(var_vp!D44:W44,calculs!$F$2)*calculs!$F$3 ->  | G17: =INDEX(var_vp!D44:W44,calculs!$G$2)*calculs!$G$3 -> 
A18: 3.403392041 | B18: -0.9659258263 | C18: -0.2588190451 | E18: =var_vp!B20 -> 0 | F18: =INDEX(var_vp!D45:W45,calculs!$F$2)*calculs!$F$3 ->  | G18: =INDEX(var_vp!D45:W45,calculs!$G$2)*calculs!$G$3 -> 
A19: 3.665191429 | B19: -0.8660254038 | C19: -0.5 | E19: =var_vp!B21 -> 0 | F19: =INDEX(var_vp!D46:W46,calculs!$F$2)*calculs!$F$3 ->  | G19: =INDEX(var_vp!D46:W46,calculs!$G$2)*calculs!$G$3 -> 
A20: 3.926990817 | B20: -0.7071067812 | C20: -0.7071067812 | E20: =var_vp!B22 -> 0 | F20: =INDEX(var_vp!D47:W47,calculs!$F$2)*calculs!$F$3 ->  | G20: =INDEX(var_vp!D47:W47,calculs!$G$2)*calculs!$G$3 -> 
A21: 4.188790205 | B21: -0.5 | C21: -0.8660254038 | E21: =var_vp!B23 -> 0 | F21: =INDEX(var_vp!D48:W48,calculs!$F$2)*calculs!$F$3 ->  | G21: =INDEX(var_vp!D48:W48,calculs!$G$2)*calculs!$G$3 -> 
A22: 4.450589593 | B22: -0.2588190451 | C22: -0.9659258263 | E22: =var_vp!B24 -> 0 | F22: =INDEX(var_vp!D49:W49,calculs!$F$2)*calculs!$F$3 ->  | G22: =INDEX(var_vp!D49:W49,calculs!$G$2)*calculs!$G$3 -> 
A23: 4.71238898 | B23: -1.837722682e-16 | C23: -1 | E23: =var_vp!B25 -> 0 | F23: =INDEX(var_vp!D50:W50,calculs!$F$2)*calculs!$F$3 ->  | G23: =INDEX(var_vp!D50:W50,calculs!$G$2)*calculs!$G$3 ->  | H23: =F23^2+G23^2 -> 
A24: 4.974188368 | B24: 0.2588190451 | C24: -0.9659258263 | E24: =var_vp!B26 -> 0 | F24: =INDEX(var_vp!D51:W51,calculs!$F$2)*calculs!$F$3 ->  | G24: =INDEX(var_vp!D51:W51,calculs!$G$2)*calculs!$G$3 -> 
A25: 5.235987756 | B25: 0.5 | C25: -0.8660254038 | E25: =var_vp!B27 -> 0 | F25: =INDEX(var_vp!D52:W52,calculs!$F$2)*calculs!$F$3 ->  | G25: =INDEX(var_vp!D52:W52,calculs!$G$2)*calculs!$G$3 -> 
A26: 5.497787144 | B26: 0.7071067812 | C26: -0.7071067812 | E26: =var_vp!B28 -> 0 | F26: =INDEX(var_vp!D53:W53,calculs!$F$2)*calculs!$F$3 ->  | G26: =INDEX(var_vp!D53:W53,calculs!$G$2)*calculs!$G$3 -> 
A27: 5.759586532 | B27: 0.8660254038 | C27: -0.5
A28: 6.021385919 | B28: 0.9659258263 | C28: -0.2588190451
A29: 6.283185307 | B29: 1 | C29: -2.02138653e-15

Sheet Segmentation
E2: Cette segmentation se fait sur les 3 premiers axes factoriels
E3: Elle se fait sur maximum 7 groupes
E4: Vous pouvez visualiser le résultat sur la feuille
E5: graph segmentation
B7: Barycentres | C7: Axe1 | D7: Axe2 | E7: Axe3 | F7: nb | G7: distances
B8: B1 | C8: 1.278039312 | D8: -0.8462484286 | E8: 0.4725499041 | F8: 21 | G8: =((C8-C$16)^2+(D8-D$16)^2+(E8-E$16)^2)^0.5*F8 -> 33.68405432
B9: B2 | C9: -0.2642530654 | D9: 1.670054654 | E9: 0.1495926836 | F9: 16 | G9: =((C9-C$16)^2+(D9-D$16)^2+(E9-E$16)^2)^0.5*F9 -> 27.15898179
B10: B3 | C10: 2.900905208 | D10: 0.2350621518 | E10: -3.68131341 | F10: 2 | G10: 9.385643006
B11: B4 | C11: -3.156954103 | D11: -1.046642419 | E11: -0.5504893448 | F11: 9 | G11: 30.34062465
B12: B5 | G12: 0
B13: B6 | G13: 0
B14: B7 | G14: 0
B16: moyenne | C16: =AVERAGE(OFFSET(source_cahi,0,0,,1)) -> 3.799275709e-14 | D16: =AVERAGE(OFFSET(source_cahi,0,1,,1)) -> -6.900961284e-14 | E16: =AVERAGE(OFFSET(source_cahi,0,2,,1)) -> 5.54151632e-14 | F16: inter | G16: =SUM(G8:G14)/C18 -> 0.3549621033
B17: somme deltas | C17: =VAR(OFFSET(source_cahi,,,,1))*nl -> 159.0230548 | D17: =VAR(OFFSET(source_cahi,,1,,1))*nl -> 76.65391048 | E17: =VAR(OFFSET(source_cahi,,2,,1))*nl -> 47.64709337 | F17: intra | G17: =1-G16 -> 0.6450378967
B18: total | C18: =SUM(C17:E17) -> 283.3240586
H19: nbclasses | I19: 4
B20: nb classes | C20: inter | D20: intra | E20: variation
B21: 2 | C21: 0.2141761261 | D21: =1-C21 -> 0.7858238739 | E21: =C21 -> 0.2141761261 | F21: =IF(E21=0,0,B21) -> 2
B22: 3 | C22: 0.333648465 | D22: =1-C22 -> 0.666351535 | E22: =ROUND(C22-C21,2) -> 0.12 | F22: =IF(E22=0,0,IF(F21=0,0,B22)) -> 3
B23: 4 | C23: 0.3549621033 | D23: 0.6450378967 | E23: =ROUND(C23-C22,2) -> 0.02 | F23: =IF(E23=0,0,IF(F22=0,0,B23)) -> 4
B24: 5 | C24: 0.3553569016 | D24: 0.6446430984 | E24: 0 | F24: 0
B25: 6 | C25: 0.3550493991 | D25: 0.6449506009 | E25: =ROUND(C25-C24,2) -> 0 | F25: 0
B26: 7 | C26: 0.355402145 | D26: 0.644597855 | E26: 0 | F26: 0
F27: =MAX(F21:F26) -> 4

Sheet Aide
A1: Code aide xlstore | K1: seg
A2: Entête | B2: introduction | C2: Aide classeur analyse en composantes principales | D2: Données de départ | E2: Matrice centrée réduite | F2: Vecteurs propres et valeurs propres | G2: Le cercle des variables | H2: Graphique des individus | I2: Graphique en 3d | J2: Les résultats | K2: Segmentation en plusieurs classes | L2: Le graphique | M2: Résultats
A3: Icone | B3: &
A4: Texte | B4: Cette aide sert à aider la compréhension du classeur mais il est de votre responsabilité de vérifier la cohérence des résultats ainsi que toute erreur dans les calculs ou dans les formules Si vous trouvez un problème vous pouvez m'en faire part : nicolas.sylvain1@libertysurf.fr | C4: Ce classeur est composé de grandes formules matricielles avec peu de procédures. Il convient de faire des copies de sauvegarde du document pour éviter des pertes de données en cas de problème Si vous avez l'habitude des formules matricielles vous pouvez les reprendre pour l'adapter à vos exigences et aussi diminuer sa taille | D4: Elles sont saisies ou collées dans la feuille données ligne 3 colonnes de C à V (zone verte) : les intitulés des variables colonne B ligne 4 à 1003 (zone bleue) : les noms des individus Dans la zone c4:v1003 les valeur (zone jaune) : uniquement des chiffres, pas de ligne vide. En a2 et a4 s'affichent le nombre de lignes et de colonnes de votre tableau. Ces variables sont notées nl et nc dans les formules Ces valeurs servent à définir la variable mdonnées (matrice des données) qui va servir au calcul des données centrées réduites pour calculer les données centrées réduites on utilise aussi les moyennes et écarts-type de chaque colonne ligne 1 et 2 | E4: Sur l'onglet centrée_réduite on a le résultat de chaque valeur moins sa moyenne divisée par son écart type. Les nouvelles moyennes et écarts type de chaque colonne deviennent 0 et 1 Les résultats sont dans la variable mcr pour matrice centrée réduite | F4: Le premier tableau contient des résultats de type matrice de variance covariance. La formule matricielle utilisée ici est =1/(nl-1)*PRODUITMAT(TRANSPOSE(mcr);mcr) Ce tableau est stocké dans la variable varcov En dessous se trouvent les valeurs propres et vecteurs propres on utilise pour ce calcul la formule suivante =SymmetricEigenvectors(nc;varcov) La fonction SymmetricEigenvectors est définie dans les macros de ce classeur. La quantité d'information de chaque axe factoriel est montré en dessous dans un tableau puis dans un graphique. La courbe bleue reprend elle la quantité d'information cumulée sur l'axe de droite. | G4: Avec les menus déroulants on choisit les 2 axes factoriels à afficher. Comme excel ne met pas automatiquement les étiquettes sur les graphiques xy il y a un bouton pour lancer une procédure qui le fait. Le format de l'étiquette est fonction du format dans la zone où sont les données servant à faire ce graphe : feuille calculs à partir de E6 Ce graphique doit vous permettre d'interpréter un axe factoriel en trouvant ce qu'il représente. Les variables situées au centre ne sont pas expliquées par l'axe par contre au plus une variables est sur l'axe et éloignée du centre au plus elle explique cet axe. | H4: Comme pour le cercle des variables on choisit 2 axes factoriels parmi les 5 premiers et on lance la procédure pour les étiquettes. Ici une variante : la taille des caractères est ramenée à 6 quand l'individu est peu représenté sur le plan choisi les données sont sur la feuille individus. Cette première visualisation peut vous donner une information sur le possible regroupements de certains individus. | I4: Les axes utilisés sont sont les 3 premiers axes factoriels Lla procédure pour les étiquettes est la même que pour le graphe 2d (les formats seront ceux de la feuille individus) Le compteur en haut à gauche sert pour changer l'angle entre l'axe 1 et l'axe 2 Les données en haut à droite servent à visualiser un individu quand sa position peut être ambiguë. | J4: Sur la feuille données apparaissent les valeurs des projections de chaque individu sur les 5 premiers axes factoriels ainsi que les cos2 associés. Ces données peuvent être ajoutées comme nouvelles variables à votre tableau et ainsi remplacer toutes les autres pour une segmentation. La taille du classeur peut le rendre son comportement instable et inattendu. Je conseille donc de récupérer les résultats des projections dans un autre classeur par collage spécial valeurs et de fermer ce classeur pour libérer de la mémoire. Pour copier un graphique et le rendre indépendant de ses données sources, vous cliquez sur la série de données à figer et dans la barre de formules vous appuyez sur F9 | K4: Ce classeur fait aussi une segmentation en maximum 7 classes à partir des 3 premiers axes factoriels (cela permet de voir le résultat sur un graphe). Le bouton "Faire la segmentation" lance toutes les segmentations de 2 à 7 classes et fait une récapitulation sous forme de tableau et graphique. L'objectif est de trouver le nombre minimum de classes pour lequel les classes sont homogènes. | L4: Le résultat de la segmentation est affiché dans un graphique 3d comme celui après l'acp. Chaque classe est représentée par une série de couleur différente. Le centre d'inertie d'une classe est représenté par un point de même forme et couleur que les points de la classe mais sans être rempli. Il y a un ascenseur qui permet de visualiser le nuage de points en fonction du nombre de classes choisies. | M4: Les classes attribuées sont indiquées dans la feuille données à droite du tableau colonne AH.
A5: Labels1 | B5: Segmentation
A6: Labels2 | B6: description un peu plus importante de l'acp sur mon site
A7: Labels3
A8: Labels4
A9: Labels5
A10: Type 1 | B10: lien aide
A11: Type 2 | B11: lien aide
A12: Type 3
A13: Type 4
A14: Type 5
A15: Code Aide liée 1 | B15: seg
A16: Code Aide liée 2 | B16: http://sn1.chez-alice.fr/calculs/acp.html
A17: Code Aide liée 3
A18: Code Aide liée 4
A19: Code Aide liée 5
A20: Affichage modal | B20: Non | C20: Non | D20: Non | E20: Non | F20: Non | G20: Non | H20: Non | I20: Non | J20: Non | K20: Non | L20: Non | M20: Non
A21: Autorisation croix rouge pour fermer | B21: Oui | C21: Oui | D21: Oui | E21: Oui | F21: Oui | G21: Oui | H21: Oui | I21: Oui | J21: Oui | K21: Oui | L21: Oui | M21: Oui
A22: Bouton 1 | C22: Premier | D22: Premier | E22: Premier | F22: Premier | G22: Premier | H22: Premier | I22: Premier | J22: Premier | K22: Premier | L22: Premier | M22: Premier
A23: Bouton 2 | C23: précédent | D23: précédent | E23: précédent | F23: précédent | G23: précédent | H23: précédent | I23: précédent | J23: précédent | K23: précédent | L23: précédent | M23: précédent
A24: Bouton 3 | B24: Fermer | C24: Fermer | D24: Fermer | E24: Fermer | F24: Fermer | G24: Fermer | H24: Fermer | I24: Fermer | J24: Fermer | K24: Fermer | L24: Fermer | M24: Fermer
A25: Bouton 4 | B25: Suivant | C25: Suivant | D25: Suivant | E25: Suivant | F25: Suivant | G25: Suivant | H25: Suivant | I25: Suivant | K25: Suivant | L25: Suivant
A26: Bouton 5 | B26: Dernier | C26: Dernier | D26: Dernier | E26: Dernier | F26: Dernier | G26: Dernier | H26: Dernier | I26: Dernier | K26: Dernier | L26: Dernier
A27: Zone saisie texte | B27: Non | C27: Non | D27: Non | E27: Non | F27: Non | G27: Non | H27: Non | I27: Non | J27: Non | K27: Non | L27: Non | M27: Non
A28: Afficher l'image | B28: Non | C28: Non | D28: Oui | E28: Oui | F28: Oui | G28: Oui | H28: Oui | I28: Oui | J28: Oui | K28: Oui | L28: Oui | M28: Oui
A29: Image ou adresse image | D29: données!$A$1:$H$13 | E29: centrée_réduite!$A$1:$J$12 | F29: var_vp!$B$59:$w$75 | G29: Images!$B$2:$H$27 | H29: Images!$B$31:$H$57 | I29: Images!$B$59:$I$80 | J29: données!$V$1:$AG$5 | K29: Segmentation!$B$20:$G$44 | L29: Images!$B$87:$G$110 | M29: données!$AE$1:$AH$6
A30: Mots clés
A31: Bouton | B31: Fermer
A32: Choix 1 | B32: FALSE
A33: Choix 2 | B33: FALSE
A34: Choix 3 | B34: FALSE
A35: Choix 4 | B35: FALSE
A36: Choix 5 | B36: FALSE
A37: Colonne | B37: 8
A38: Répertoire aide
A40: Modèle fichier html
A41: Texte entré

Sheet calculs3d (hidden)
A1: =données!W3 -> axe1 | B1: =données!X3 -> axe2 | C1: =données!Y3 -> axe3 | D1: =données!AH3 -> Classe | E1: x | F1: y | H1: alpha | I1: =PI()/40*J1 -> 1.099557429 | J1: 14 | O1: axes | P1: violet | X1: 1 | Y1: 1 | Z1: 2 | AA1: 2 | AB1: 3 | AC1: 3 | AD1: 4 | AE1: 4 | AF1: 5 | AG1: 5 | AH1: 6 | AI1: 6 | AJ1: 7 | AK1: 7
A2: =données!W4 -> 1.428695921 | B2: =données!X4 -> -1.045187152 | C2: =données!Y4 -> 0.4915092412 | D2: =données!AH4 -> 1 | E2: =A2+B2*$I$2 -> 0.9541908834 | F2: =C2+B2*$I$3 -> -0.4397593302 | H2: cos | I2: =COS(I1) -> 0.4539904997 | P2: x | Q2: y | R2: z | X2: =IF($D2=X$1,$E2,#N/A) -> 0.9541908834 | Y2: =IF($D2=Y$1,$F2,#N/A) -> -0.4397593302 | Z2: =IF($D2=Z$1,$E2,#N/A) ->  | AA2: =IF($D2=AA$1,$F2,#N/A) ->  | AB2: =IF($D2=AB$1,$E2,#N/A) ->  | AC2: =IF($D2=AC$1,$F2,#N/A) ->  | AD2: =IF($D2=AD$1,$E2,#N/A) ->  | AE2: =IF($D2=AE$1,$F2,#N/A) ->  | AF2: =IF($D2=AF$1,$E2,#N/A) ->  | AG2: =IF($D2=AG$1,$F2,#N/A) ->  | AH2: =IF($D2=AH$1,$E2,#N/A) ->  | AI2: =IF($D2=AI$1,$F2,#N/A) ->  | AJ2: =IF($D2=AJ$1,$E2,#N/A) ->  | AK2: =IF($D2=AK$1,$F2,#N/A) -> 
A3: =données!W5 -> 1.410789778 | B3: =données!X5 -> -0.8558944634 | C3: =données!Y5 -> 0.5230806413 | D3: =données!AH5 -> 1 | E3: 1.022221823 | F3: -0.2395269096 | H3: sin | I3: =SIN(I1) -> 0.8910065242 | O3: max | P3: =MAX(OFFSET(A2,0,0,nl,1)) -> 3.000389274 | Q3: =MAX(OFFSET(B2,0,0,nl,1)) -> 2.26210122 | R3: =MAX(OFFSET(C2,0,0,nl,1)) -> 0.7849904065 | X3: 1.022221823 | Y3: -0.2395269096
A4: =données!W6 -> 1.485793481 | B4: =données!X6 -> -0.9314389824 | C4: =données!Y6 -> 0.5292232741 | D4: =données!AH6 -> 1 | E4: 1.062929032 | F4: -0.3006949361 | H4: repère (vert foncé) | O4: min | P4: =MIN(OFFSET(A2,0,0,nl,1)) -> -4.327691692 | Q4: =MIN(OFFSET(B2,0,0,nl,1)) -> -2.04877679 | R4: =MIN(OFFSET(C2,0,0,nl,1)) -> -3.722674352 | X4: 1.062929032 | Y4: -0.3006949361
A5: =données!W7 -> 1.262088484 | B5: =données!X7 -> -0.9639694334 | C5: =données!Y7 -> 0.5800136239 | D5: =données!AH7 -> 1 | E5: 0.8244555194 | F5: -0.2788894304 | H5: longueur des axes | O5: origine | P5: 0 | Q5: 0 | R5: 0 | X5: 0.8244555194 | Y5: -0.2788894304
A6: =données!W8 -> 1.40081743 | B6: =données!X8 -> -0.9416117811 | C6: =données!Y8 -> 0.4330359622 | D6: =données!AH8 -> 1 | E6: 0.9733346271 | F6: -0.405946278 | H6: x | I6: y | J6: z | O6: x | P6: y | Q6: z | S6: x | T6: y | X6: 0.9733346271 | Y6: -0.405946278
A7: =données!W9 -> 1.196458192 | B7: =données!X9 -> -1.001581973 | C7: =données!Y9 -> 0.610195204 | D7: =données!AH9 -> 1 | E7: 0.7417494911 | F7: -0.2822208689 | H7: 1 | I7: 1 | J7: 1 | O7: =$P$5 -> 0 | P7: =$Q$5 -> 0 | Q7: =$R$5 -> 0 | S7: =O7+P7*$I$2 -> 0 | T7: =Q7+P7*$I$3 -> 0 | X7: 0.7417494911 | Y7: -0.2822208689
A8: =données!W10 -> 1.595650514 | B8: =données!X10 -> -0.8042065536 | C8: =données!Y10 -> 0.4839333555 | D8: =données!AH10 -> 1 | E8: 1.230548379 | F8: -0.2326199305 | H8: x | I8: y | J8: z | L8: x | M8: y | O8: =P3 -> 3.000389274 | P8: =$Q$5 -> 0 | Q8: 0 | S8: =O8+P8*$I$2 -> 3.000389274 | T8: 0 | X8: 1.230548379 | Y8: -0.2326199305
A9: =données!W11 -> 1.478991077 | B9: =données!X11 -> -0.8216545753 | C9: =données!Y11 -> 0.4041814457 | D9: =données!AH11 -> 1 | E9: 1.105967706 | F9: -0.3279181415 | H9: =$P$5 -> 0 | I9: =$Q$5 -> 0 | J9: =$R$5 -> 0 | L9: =H9+I9*$I$2 -> 0 | M9: =J9+I9*$I$3 -> 0 | O9: =$P$5 -> 0 | P9: =$Q$5 -> 0 | Q9: 0 | S9: 0 | T9: 0 | X9: 1.105967706 | Y9: -0.3279181415
A10: =données!W12 -> 1.301059291 | B10: =données!X12 -> -0.9156738476 | C10: =données!Y12 -> 0.5790859049 | D10: =données!AH12 -> 1 | E10: 0.8853520635 | F10: -0.2367854674 | H10: =H9+H7 -> 1 | I10: =$Q$5 -> 0 | J10: =$R$5 -> 0 | L10: 1 | M10: 0 | O10: =P4 -> -4.327691692 | P10: =$Q$5 -> 0 | Q10: 0 | S10: =O10+P10*$I$2 -> -4.327691692 | T10: 0 | X10: 0.8853520635 | Y10: -0.2367854674
A11: =données!W13 -> 1.232281062 | B11: =données!X13 -> -0.8270241332 | C11: =données!Y13 -> 0.3996279472 | D11: =données!AH13 -> 1 | E11: 0.8568199628 | F11: -0.3372559511 | H11: =$P$5 -> 0 | I11: =$Q$5 -> 0 | J11: =$R$5 -> 0 | L11: 0 | M11: 0 | O11: =$P$5 -> 0 | P11: =$Q$5 -> 0 | Q11: 0 | S11: 0 | T11: 0 | X11: 0.8568199628 | Y11: -0.3372559511
A12: =données!W14 -> 1.215182241 | B12: =données!X14 -> -0.8942931476 | C12: =données!Y14 -> 0.479622109 | D12: =données!AH14 -> 1 | E12: 0.809181648 | F12: -0.31719892 | H12: =$P$5 -> 0 | I12: =$Q$5 -> 0 | J12: =$R$5+J7 -> 1 | L12: 0 | M12: 1 | O12: 0 | P12: =Q3 -> 2.26210122 | Q12: 0 | S12: =O12+P12*$I$2 -> 1.026972463 | T12: =Q12+P12*$I$3 -> 2.015546945 | X12: 0.809181648 | Y12: -0.31719892
A13: =données!W15 -> 1.220942065 | B13: =données!X15 -> -0.8959249717 | C13: =données!Y15 -> 0.454555062 | D13: =données!AH15 -> 1 | E13: 0.8142006398 | F13: -0.343719933 | H13: =$P$5 -> 0 | I13: =$Q$5 -> 0 | J13: =$R$5 -> 0 | L13: 0 | M13: 0 | O13: 0 | P13: =$Q$5 -> 0 | Q13: 0 | S13: 0 | T13: 0 | X13: 0.8142006398 | Y13: -0.343719933
A14: =données!W16 -> 1.167139124 | B14: =données!X16 -> -0.965047956 | C14: =données!Y16 -> 0.5782748455 | D14: =données!AH16 -> 1 | E14: 0.72901652 | F14: -0.2815891794 | H14: =0+($P$5) -> 0 | I14: =I7+($Q$5) -> 1 | J14: =0+($R$5) -> 0 | L14: 0.4539904997 | M14: 0.8910065242 | O14: 0 | P14: =Q4 -> -2.04877679 | Q14: 0 | S14: =O14+P14*$I$2 -> -0.9301251986 | T14: =Q14+P14*$I$3 -> -1.825473486 | X14: 0.72901652 | Y14: -0.2815891794
A15: =données!W17 -> 1.144513991 | B15: =données!X17 -> -0.8440138045 | C15: =données!Y17 -> 0.5874239919 | D15: =données!AH17 -> 1 | E15: 0.7613397425 | F15: -0.1645978144 | H15: 18 | I15: projection (cercle bleu clair) | O15: 0 | P15: =$Q$5 -> 0 | Q15: 0 | S15: 0 | T15: 0 | X15: 0.7613397425 | Y15: -0.1645978144
A16: =données!W18 -> 1.233728573 | B16: =données!X18 -> -0.6922592128 | C16: =données!Y18 -> 0.3401876854 | D16: =données!AH18 -> 1 | E16: 0.9194494666 | F16: -0.2766197896 | H16: x | I16: y | J16: z | L16: x | M16: y | O16: 0 | P16: =$Q$5 -> 0 | Q16: =R4 -> -3.722674352 | S16: 0 | T16: =Q16+P16*$I$3 -> -3.722674352 | X16: 0.9194494666 | Y16: -0.2766197896
A17: =données!W19 -> 1.213540941 | B17: =données!X19 -> -0.8120967135 | C17: =données!Y19 -> 0.4808134345 | D17: =données!AH19 -> 1 | E17: 0.8448567481 | F17: -0.2427700356 | H17: =ROUND(INDEX(A:A,$H$15+1),3) -> 1.261 | I17: =ROUND(INDEX(B:B,$H$15+1),3) -> -0.648 | J17: =ROUND(INDEX(C:C,$H$15+1),3) -> 0.442 | L17: =H17+I17*$I$2 -> 0.9668141562 | M17: =J17+I17*$I$3 -> -0.1353722277 | O17: 0 | P17: =$Q$5 -> 0 | Q17: =$R$5 -> 0 | S17: 0 | T17: 0 | X17: 0.8448567481 | Y17: -0.2427700356
A18: =données!W20 -> 1.201349211 | B18: =données!X20 -> -0.7438045852 | C18: =données!Y20 -> 0.4698747905 | D18: =données!AH20 -> 1 | E18: 0.8636689954 | F18: -0.1928599477 | H18: =H17 -> 1.261 | I18: =I17 -> -0.648 | J18: 0 | L18: =H18+I18*$I$2 -> 0.9668141562 | M18: =J18+I18*$I$3 -> -0.5773722277 | O18: 0 | P18: =$Q$5 -> 0 | Q18: =R3 -> 0.7849904065 | S18: 0 | T18: =Q18+P18*$I$3 -> 0.7849904065 | X18: 0.8636689954 | Y18: -0.1928599477
A19: =données!W21 -> 1.261485353 | B19: =données!X21 -> -0.6482515166 | C19: =données!Y21 -> 0.4419953036 | D19: =données!AH21 -> 1 | E19: 0.9671853235 | F19: -0.135601027 | H19: =$P$5 -> 0 | I19: =I17 -> -0.648 | J19: =$R$5 -> 0 | L19: =H19+I19*$I$2 -> -0.2941858438 | M19: =J19+I19*$I$3 -> -0.5773722277 | X19: 0.9671853235 | Y19: -0.135601027
A20: =données!W22 -> 1.310555383 | B20: =données!X22 -> -0.618073919 | C20: =données!Y22 -> 0.266034022 | D20: =données!AH22 -> 1 | E20: 1.029955696 | F20: -0.2846738722 | H20: =H17 -> 1.261 | I20: =I18 -> -0.648 | J20: =$R$5 -> 0 | L20: =H20+I20*$I$2 -> 0.9668141562 | M20: =J20+I20*$I$3 -> -0.5773722277 | P20: zone de saisie | X20: 1.029955696 | Y20: -0.2846738722
A21: =données!W23 -> 0.7562924687 | B21: =données!X23 -> -0.9641514773 | C21: =données!Y23 -> 0.5295365712 | D21: =données!AH23 -> 1 | E21: 0.3185768577 | F21: -0.3295286854 | H21: =H20 -> 1.261 | I21: 0 | J21: 0 | L21: =H21+I21*$I$2 -> 1.261 | M21: =J21+I21*$I$3 -> 0 | P21: calculs des coordonnées 2d | X21: 0.3185768577 | Y21: -0.3295286854
A22: =données!W24 -> 1.321470974 | B22: =données!X24 -> -0.5850568017 | C22: =données!Y24 -> 0.2613435697 | D22: =données!AH24 -> 1 | E22: 1.055860744 | F22: -0.2599458576 | X22: 1.055860744 | Y22: -0.2599458576
A23: =données!W25 -> 0.04156646522 | B23: =données!X25 -> 1.340322 | C23: =données!Y25 -> 0.5754936223 | D23: =données!AH25 -> 2 | E23: 0.6500599198 | F23: 1.769729269 | O23: nicolas.sylvain1@libertysurf.fr | X23: =IF($D23=X$1,$E23,#N/A) ->  | Y23: =IF($D23=Y$1,$F23,#N/A) ->  | Z23: =IF($D23=Z$1,$E23,#N/A) -> 0.6500599198 | AA23: =IF($D23=AA$1,$F23,#N/A) -> 1.769729269
A24: =données!W26 -> 0.8468244352 | B24: =données!X26 -> 1.500528661 | C24: =données!Y26 -> 0.2382812996 | D24: =données!AH26 -> 2 | E24: 1.528050192 | F24: 1.575262126 | O24: http://sn1.chez-alice.fr | Z24: 1.528050192 | AA24: 1.575262126
A25: =données!W27 -> 0.4669866945 | B25: =données!X27 -> 1.541251502 | C25: =données!Y27 -> 0.3961755564 | D25: =données!AH27 -> 2 | E25: 1.166700234 | F25: 1.7694407 | Z25: 1.166700234 | AA25: 1.7694407
A26: =données!W28 -> 0.6156815797 | B26: =données!X28 -> 1.661112291 | C26: =données!Y28 -> 0.3698085602 | D26: =données!AH28 -> 2 | E26: 1.369810779 | F26: 1.849870449 | Z26: 1.369810779 | AA26: 1.849870449
A27: =données!W29 -> -0.2097078949 | B27: =données!X29 -> 1.083391306 | C27: =données!Y29 -> 0.4708726463 | D27: =données!AH29 -> 2 | E27: 0.2821414656 | F27: 1.436181368 | Z27: 0.2821414656 | AA27: 1.436181368
A28: =données!W30 -> -0.01245295097 | B28: =données!X30 -> 1.196591713 | C28: =données!Y30 -> 0.4629380637 | D28: =données!AH30 -> 2 | E28: 0.5307883188 | F28: 1.529109087 | Z28: 0.5307883188 | AA28: 1.529109087
A29: =données!W31 -> -2.449247624 | B29: =données!X31 -> -2.024872689 | C29: =données!Y31 -> -1.68068478 | D29: =données!AH31 -> 4 | E29: -3.368520588 | F29: -3.484859556 | AD29: =IF($D29=AD$1,$E29,#N/A) -> -3.368520588 | AE29: =IF($D29=AE$1,$F29,#N/A) -> -3.484859556
A30: =données!W32 -> -2.475853569 | B30: =données!X32 -> -2.04877679 | C30: =données!Y32 -> -1.382048053 | D30: =données!AH32 -> 4 | E30: -3.405978767 | F30: -3.207521539 | AD30: -3.405978767 | AE30: -3.207521539
A31: =données!W33 -> -4.025218096 | B31: =données!X33 -> -1.259035235 | C31: =données!Y33 -> 0.7849904065 | D31: =données!AH33 -> 4 | E31: -4.596808132 | F31: -0.3368182019 | AD31: -4.596808132 | AE31: -0.3368182019
A32: =données!W34 -> -3.510845376 | B32: =données!X34 -> -0.7931571783 | C32: =données!Y34 -> -0.7555855757 | D32: =données!AH34 -> 4 | E32: -3.8709312 | F32: -1.462293796 | AD32: -3.8709312 | AE32: -1.462293796
A33: =données!W35 -> -2.256502356 | B33: =données!X35 -> -1.118291685 | C33: =données!Y35 -> -2.226240489 | D33: =données!AH35 -> 4 | E33: -2.764196157 | F33: -3.222645677 | AD33: -2.764196157 | AE33: -3.222645677
A34: =données!W36 -> -2.003983499 | B34: =données!X36 -> -0.09159197386 | C34: =données!Y36 -> -1.26612082 | D34: =données!AH36 -> 4 | E34: -2.045565385 | F34: -1.347729866 | AD34: -2.045565385 | AE34: -1.347729866
A35: =données!W37 -> -4.031221974 | B35: =données!X37 -> -0.867771568 | C35: =données!Y37 -> 0.5450484038 | D35: =données!AH37 -> 4 | E35: -4.425182022 | F35: -0.2281417248 | AD35: -4.425182022 | AE35: -0.2281417248
A36: =données!W38 -> -3.332022738 | B36: =données!X38 -> -0.5376052535 | C36: =données!Y38 -> 0.3175125954 | D36: =données!AH38 -> 4 | E36: -3.576090416 | F36: -0.1614971929 | AD36: -3.576090416 | AE36: -0.1614971929
A37: =données!W39 -> -4.327691692 | B37: =données!X39 -> -0.6786793985 | C37: =données!Y39 -> 0.7087242091 | D37: =données!AH39 -> 4 | E37: -4.635805691 | F37: 0.1040164373 | AD37: -4.635805691 | AE37: 0.1040164373
A38: =données!W40 -> 3.000389274 | B38: =données!X40 -> 0.3475323834 | C38: =données!Y40 -> -3.722674352 | D38: =données!AH40 -> 3 | E38: 3.158165674 | F38: -3.413020731 | AB38: =IF($D38=AB$1,$E38,#N/A) -> 3.158165674 | AC38: =IF($D38=AC$1,$F38,#N/A) -> -3.413020731
A39: =données!W41 -> 2.801421142 | B39: =données!X41 -> 0.1225919203 | C39: =données!Y41 -> -3.639952468 | D39: =données!AH41 -> 3 | E39: 2.857076709 | F39: -3.530722267 | AB39: =IF($D39=AB$1,$E39,#N/A) -> 2.857076709 | AC39: =IF($D39=AC$1,$F39,#N/A) -> -3.530722267
A40: =données!W42 -> -0.2978958799 | B40: =données!X42 -> 1.981993358 | C40: =données!Y42 -> -0.01994399135 | D40: =données!AH42 -> 2 | E40: 0.6019102753 | F40: 1.746025022 | S40: =Segmentation!C8+Segmentation!D8*$I$2 -> 0.8938505651 | T40: =Segmentation!E8+Segmentation!D8*$I$3 -> -0.2814629669 | Z40: =IF($D40=Z$1,$E40,#N/A) -> 0.6019102753 | AA40: =IF($D40=AA$1,$F40,#N/A) -> 1.746025022
A41: =données!W43 -> 0.1778029642 | B41: =données!X43 -> 2.26210122 | C41: =données!Y43 -> -0.01104636353 | D41: =données!AH43 -> 2 | E41: 1.204775427 | F41: 2.004500582 | S41: =Segmentation!C9+Segmentation!D9*$I$2 -> 0.4939358817 | T41: =Segmentation!E9+Segmentation!D9*$I$3 -> 1.637622276 | Z41: 1.204775427 | AA41: 2.004500582
A42: =données!W44 -> -0.296119116 | B42: =données!X44 -> 2.043444586 | C42: =données!Y44 -> -0.1285423676 | D42: =données!AH44 -> 2 | E42: 0.6315853127 | F42: 1.69218009 | S42: =Segmentation!C10+Segmentation!D10*$I$2 -> 3.007621191 | T42: =Segmentation!E10+Segmentation!D10*$I$3 -> -3.471871499 | Z42: 0.6315853127 | AA42: 1.69218009
A43: =données!W45 -> 0.05060275883 | B43: =données!X45 -> 2.053601498 | C43: =données!Y45 -> -0.2494599677 | D43: =données!AH45 -> 2 | E43: 0.9829183293 | F43: 1.580312365 | S43: =Segmentation!C11+Segmentation!D11*$I$2 -> -3.632119818 | T43: =Segmentation!E11+Segmentation!D11*$I$3 -> -1.483054569 | Z43: 0.9829183293 | AA43: 1.580312365
A44: =données!W46 -> 0.05439698349 | B44: =données!X46 -> 1.377475512 | C44: =données!Y46 -> 0.2180243465 | D44: =données!AH46 -> 2 | E44: 0.6797577798 | F44: 1.445364015 | S44: =Segmentation!C12+Segmentation!D12*$I$2 -> 0 | T44: =Segmentation!E12+Segmentation!D12*$I$3 -> 0 | Z44: 0.6797577798 | AA44: 1.445364015
A45: =données!W47 -> -1.338946377 | B45: =données!X47 -> 1.635382801 | C45: =données!Y47 -> 0.1287746319 | D45: =données!AH47 -> 2 | E45: -0.5964981214 | F45: 1.585911377 | S45: =Segmentation!C13+Segmentation!D13*$I$2 -> 0 | T45: =Segmentation!E13+Segmentation!D13*$I$3 -> 0 | Z45: -0.5964981214 | AA45: 1.585911377
A46: =données!W48 -> -0.9028414941 | B46: =données!X48 -> 1.999067483 | C46: =données!Y48 -> 0.06502421163 | D46: =données!AH48 -> 2 | E46: 0.004716151372 | F46: 1.846206381 | S46: =Segmentation!C14+Segmentation!D14*$I$2 -> 0 | T46: =Segmentation!E14+Segmentation!D14*$I$3 -> 0 | Z46: 0.004716151372 | AA46: 1.846206381
A47: =données!W49 -> -1.021887052 | B47: =données!X49 -> 1.652813896 | C47: =données!Y49 -> 0.01827813578 | D47: =données!AH49 -> 2 | E47: -0.2715252458 | F47: 1.4909461 | Z47: -0.2715252458 | AA47: 1.4909461
A48: =données!W50 -> -1.085001671 | B48: =données!X50 -> 1.715116489 | C48: =données!Y50 -> -0.1304991271 | D48: =données!AH50 -> 2 | E48: -0.3063550791 | F48: 1.397680854 | Z48: -0.3063550791 | AA48: 1.397680854
A49: =données!W51 -> -1.317058492 | B49: =données!X51 -> 1.676680152 | C49: =données!Y51 -> -0.0106963195 | D49: =données!AH51 -> 2 | E49: -0.5558616316 | F49: 1.483236635 | Z49: -0.5558616316 | AA49: 1.483236635
A50: =données!W52 ->  | B50: =données!X52 ->  | C50: =données!Y52 ->  | D50: =données!AH52 -> 2 | AB50: =IF($D50=AB$1,$E50,#N/A) ->  | AC50: =IF($D50=AC$1,$F50,#N/A) -> 
A51: =données!W53 ->  | B51: =données!X53 ->  | C51: =données!Y53 ->  | D51: =données!AH53 -> 2
A52: =données!W54 ->  | B52: =données!X54 ->  | C52: =données!Y54 ->  | D52: =données!AH54 -> 2
A53: =données!W55 ->  | B53: =données!X55 ->  | C53: =données!Y55 ->  | D53: =données!AH55 -> 2
A54: =données!W56 ->  | B54: =données!X56 ->  | C54: =données!Y56 ->  | D54: =données!AH56 -> 2
A55: =données!W57 ->  | B55: =données!X57 ->  | C55: =données!Y57 ->  | D55: =données!AH57 -> 2
A56: =données!W58 ->  | B56: =données!X58 ->  | C56: =données!Y58 ->  | D56: =données!AH58 -> 2
A57: =données!W59 ->  | B57: =données!X59 ->  | C57: =données!Y59 ->  | D57: =données!AH59 -> 2
A58: =données!W60 ->  | B58: =données!X60 ->  | C58: =données!Y60 ->  | D58: =données!AH60 -> 2
A59: =données!W61 ->  | B59: =données!X61 ->  | C59: =données!Y61 ->  | D59: =données!AH61 -> 2
A60: =données!W62 ->  | B60: =données!X62 ->  | C60: =données!Y62 ->  | D60: =données!AH62 -> 2
A61: =données!W63 ->  | B61: =données!X63 ->  | C61: =données!Y63 ->  | D61: =données!AH63 -> 2 | AF61: =IF($D61=AF$1,$E61,#N/A) ->  | AG61: =IF($D61=AG$1,$F61,#N/A) -> 
A62: =données!W64 ->  | B62: =données!X64 ->  | C62: =données!Y64 ->  | D62: =données!AH64 -> 2 | AF62: =IF($D62=AF$1,$E62,#N/A) ->  | AG62: =IF($D62=AG$1,$F62,#N/A) -> 
A63: =données!W65 ->  | B63: =données!X65 ->  | C63: =données!Y65 ->  | D63: =données!AH65 -> 2 | AF63: =IF($D63=AF$1,$E63,#N/A) ->  | AG63: =IF($D63=AG$1,$F63,#N/A) -> 
A64: =données!W66 ->  | B64: =données!X66 ->  | C64: =données!Y66 ->  | D64: =données!AH66 -> 3 | AF64: =IF($D64=AF$1,$E64,#N/A) ->  | AG64: =IF($D64=AG$1,$F64,#N/A) -> 
A65: =données!W67 ->  | B65: =données!X67 ->  | C65: =données!Y67 ->  | D65: =données!AH67 -> 3 | AH65: =IF($D65=AH$1,$E65,#N/A) ->  | AI65: =IF($D65=AI$1,$F65,#N/A) -> 
A66: =données!W68 ->  | B66: =données!X68 ->  | C66: =données!Y68 ->  | D66: =données!AH68 -> 3 | E66: =A66+B66*$I$2 ->  | F66: =C66+B66*$I$3 ->  | X66: =IF($D66=X$1,$E66,#N/A) ->  | Y66: =IF($D66=Y$1,$F66,#N/A) ->  | Z66: =IF($D66=Z$1,$E66,#N/A) ->  | AA66: =IF($D66=AA$1,$F66,#N/A) ->  | AB66: =IF($D66=AB$1,$E66,#N/A) ->  | AC66: =IF($D66=AC$1,$F66,#N/A) ->  | AD66: =IF($D66=AD$1,$E66,#N/A) ->  | AE66: =IF($D66=AE$1,$F66,#N/A) ->  | AF66: =IF($D66=AF$1,$E66,#N/A) ->  | AG66: =IF($D66=AG$1,$F66,#N/A) ->  | AH66: =IF($D66=AH$1,$E66,#N/A) ->  | AI66: =IF($D66=AI$1,$F66,#N/A) ->  | AJ66: =IF($D66=AJ$1,$E66,#N/A) ->  | AK66: =IF($D66=AK$1,$F66,#N/A) -> 
A67: =données!W69 ->  | B67: =données!X69 ->  | C67: =données!Y69 ->  | D67: =données!AH69 -> 3 | AD67: =IF($D67=AD$1,$E67,#N/A) ->  | AE67: =IF($D67=AE$1,$F67,#N/A) ->  | AH67: =IF($D67=AH$1,$E67,#N/A) ->  | AI67: =IF($D67=AI$1,$F67,#N/A) -> 
A68: =données!W70 ->  | B68: =données!X70 ->  | C68: =données!Y70 ->  | D68: =données!AH70 -> 3 | AH68: =IF($D68=AH$1,$E68,#N/A) ->  | AI68: =IF($D68=AI$1,$F68,#N/A) -> 
A69: =données!W71 ->  | B69: =données!X71 ->  | C69: =données!Y71 ->  | D69: =données!AH71 -> 3 | AH69: =IF($D69=AH$1,$E69,#N/A) ->  | AI69: =IF($D69=AI$1,$F69,#N/A) -> 
A70: =données!W72 ->  | B70: =données!X72 ->  | C70: =données!Y72 ->  | D70: =données!AH72 -> 3 | AF70: =IF($D70=AF$1,$E70,#N/A) ->  | AG70: =IF($D70=AG$1,$F70,#N/A) -> 
A71: =données!W73 ->  | B71: =données!X73 ->  | C71: =données!Y73 ->  | D71: =données!AH73 -> 3 | AD71: =IF($D71=AD$1,$E71,#N/A) ->  | AE71: =IF($D71=AE$1,$F71,#N/A) -> 
A72: =données!W74 ->  | B72: =données!X74 ->  | C72: =données!Y74 ->  | D72: =données!AH74 -> 3
A73: =données!W75 ->  | B73: =données!X75 ->  | C73: =données!Y75 ->  | D73: =données!AH75 -> 3
A74: =données!W76 ->  | B74: =données!X76 ->  | C74: =données!Y76 ->  | D74: =données!AH76 -> 3
A75: =données!W77 ->  | B75: =données!X77 ->  | C75: =données!Y77 ->  | D75: =données!AH77 -> 3
A76: =données!W78 ->  | B76: =données!X78 ->  | C76: =données!Y78 ->  | D76: =données!AH78 -> 3
A77: =données!W79 ->  | B77: =données!X79 ->  | C77: =données!Y79 ->  | D77: =données!AH79 -> 3
A78: =données!W80 ->  | B78: =données!X80 ->  | C78: =données!Y80 ->  | D78: =données!AH80 -> 3
A79: =données!W81 ->  | B79: =données!X81 ->  | C79: =données!Y81 ->  | D79: =données!AH81 -> 3
A80: =données!W82 ->  | B80: =données!X82 ->  | C80: =données!Y82 ->  | D80: =données!AH82 -> 3
A81: =données!W83 ->  | B81: =données!X83 ->  | C81: =données!Y83 ->  | D81: =données!AH83 -> 3 | AF81: =IF($D81=AF$1,$E81,#N/A) ->  | AG81: =IF($D81=AG$1,$F81,#N/A) -> 
A82: =données!W84 ->  | B82: =données!X84 ->  | C82: =données!Y84 ->  | D82: =données!AH84 -> 3 | AD82: =IF($D82=AD$1,$E82,#N/A) ->  | AE82: =IF($D82=AE$1,$F82,#N/A) -> 
A83: =données!W85 ->  | B83: =données!X85 ->  | C83: =données!Y85 ->  | D83: =données!AH85 -> 3 | AD83: =IF($D83=AD$1,$E83,#N/A) ->  | AE83: =IF($D83=AE$1,$F83,#N/A) -> 
A84: =données!W86 ->  | B84: =données!X86 ->  | C84: =données!Y86 ->  | D84: =données!AH86 -> 3 | AD84: =IF($D84=AD$1,$E84,#N/A) ->  | AE84: =IF($D84=AE$1,$F84,#N/A) -> 
A85: =données!W87 ->  | B85: =données!X87 ->  | C85: =données!Y87 ->  | D85: =données!AH87 -> 3 | AD85: =IF($D85=AD$1,$E85,#N/A) ->  | AE85: =IF($D85=AE$1,$F85,#N/A) -> 
A86: =données!W88 ->  | B86: =données!X88 ->  | C86: =données!Y88 ->  | D86: =données!AH88 -> 3 | AD86: =IF($D86=AD$1,$E86,#N/A) ->  | AE86: =IF($D86=AE$1,$F86,#N/A) -> 
A87: =données!W89 ->  | B87: =données!X89 ->  | C87: =données!Y89 ->  | D87: =données!AH89 -> 3 | AH87: =IF($D87=AH$1,$E87,#N/A) ->  | AI87: =IF($D87=AI$1,$F87,#N/A) -> 
A88: =données!W90 ->  | B88: =données!X90 ->  | C88: =données!Y90 ->  | D88: =données!AH90 -> 3 | AD88: =IF($D88=AD$1,$E88,#N/A) ->  | AE88: =IF($D88=AE$1,$F88,#N/A) -> 
A89: =données!W91 ->  | B89: =données!X91 ->  | C89: =données!Y91 ->  | D89: =données!AH91 -> 3
A90: =données!W92 ->  | B90: =données!X92 ->  | C90: =données!Y92 ->  | D90: =données!AH92 -> 3
A91: =données!W93 ->  | B91: =données!X93 ->  | C91: =données!Y93 ->  | D91: =données!AH93 -> 3
A92: =données!W94 ->  | B92: =données!X94 ->  | C92: =données!Y94 ->  | D92: =données!AH94 -> 3
A93: =données!W95 ->  | B93: =données!X95 ->  | C93: =données!Y95 ->  | D93: =données!AH95 -> 3
A94: =données!W96 ->  | B94: =données!X96 ->  | C94: =données!Y96 ->  | D94: =données!AH96 -> 3 | AH94: =IF($D94=AH$1,$E94,#N/A) ->  | AI94: =IF($D94=AI$1,$F94,#N/A) -> 
A95: =données!W97 ->  | B95: =données!X97 ->  | C95: =données!Y97 ->  | D95: =données!AH97 -> 3 | AH95: =IF($D95=AH$1,$E95,#N/A) ->  | AI95: =IF($D95=AI$1,$F95,#N/A) -> 
A96: =données!W98 ->  | B96: =données!X98 ->  | C96: =données!Y98 ->  | D96: =données!AH98 -> 3 | AH96: =IF($D96=AH$1,$E96,#N/A) ->  | AI96: =IF($D96=AI$1,$F96,#N/A) -> 
A97: =données!W99 ->  | B97: =données!X99 ->  | C97: =données!Y99 ->  | D97: =données!AH99 -> 3 | AF97: =IF($D97=AF$1,$E97,#N/A) ->  | AG97: =IF($D97=AG$1,$F97,#N/A) -> 
A98: =données!W100 ->  | B98: =données!X100 ->  | C98: =données!Y100 ->  | D98: =données!AH100 -> 3 | AF98: =IF($D98=AF$1,$E98,#N/A) ->  | AG98: =IF($D98=AG$1,$F98,#N/A) -> 
A99: =données!W101 ->  | B99: =données!X101 ->  | C99: =données!Y101 ->  | D99: =données!AH101 -> 3 | AD99: =IF($D99=AD$1,$E99,#N/A) ->  | AE99: =IF($D99=AE$1,$F99,#N/A) -> 
A100: =données!W102 ->  | B100: =données!X102 ->  | C100: =données!Y102 ->  | D100: =données!AH102 -> 3 | AD100: =IF($D100=AD$1,$E100,#N/A) ->  | AE100: =IF($D100=AE$1,$F100,#N/A) -> 
A101: =données!W103 ->  | B101: =données!X103 ->  | C101: =données!Y103 ->  | D101: =données!AH103 -> 3 | AD101: =IF($D101=AD$1,$E101,#N/A) ->  | AE101: =IF($D101=AE$1,$F101,#N/A) -> 
A102: =données!W104 ->  | B102: =données!X104 ->  | C102: =données!Y104 ->  | D102: =données!AH104 -> 3 | AD102: =IF($D102=AD$1,$E102,#N/A) ->  | AE102: =IF($D102=AE$1,$F102,#N/A) -> 
A103: =données!W105 ->  | B103: =données!X105 ->  | C103: =données!Y105 ->  | D103: =données!AH105 -> 3 | AH103: =IF($D103=AH$1,$E103,#N/A) ->  | AI103: =IF($D103=AI$1,$F103,#N/A) -> 
A104: =données!W106 ->  | B104: =données!X106 ->  | C104: =données!Y106 ->  | D104: =données!AH106 -> 3 | AH104: =IF($D104=AH$1,$E104,#N/A) ->  | AI104: =IF($D104=AI$1,$F104,#N/A) -> 
A105: =données!W107 ->  | B105: =données!X107 ->  | C105: =données!Y107 ->  | D105: =données!AH107 -> 3 | AH105: =IF($D105=AH$1,$E105,#N/A) ->  | AI105: =IF($D105=AI$1,$F105,#N/A) -> 
A106: =données!W108 ->  | B106: =données!X108 ->  | C106: =données!Y108 ->  | D106: =données!AH108 -> 3 | AJ106: =IF($D106=AJ$1,$E106,#N/A) ->  | AK106: =IF($D106=AK$1,$F106,#N/A) -> 
A107: =données!W109 ->  | B107: =données!X109 ->  | C107: =données!Y109 ->  | D107: =données!AH109 -> 3
A108: =données!W110 ->  | B108: =données!X110 ->  | C108: =données!Y110 ->  | D108: =données!AH110 -> 3
A109: =données!W111 ->  | B109: =données!X111 ->  | C109: =données!Y111 ->  | D109: =données!AH111 -> 3
A110: =données!W112 ->  | B110: =données!X112 ->  | C110: =données!Y112 ->  | D110: =données!AH112 -> 3
A111: =données!W113 ->  | B111: =données!X113 ->  | C111: =données!Y113 ->  | D111: =données!AH113 -> 3
A112: =données!W114 ->  | B112: =données!X114 ->  | C112: =données!Y114 ->  | D112: =données!AH114 -> 3
A113: =données!W115 ->  | B113: =données!X115 ->  | C113: =données!Y115 ->  | D113: =données!AH115 -> 3
A114: =données!W116 ->  | B114: =données!X116 ->  | C114: =données!Y116 ->  | D114: =données!AH116 -> 3
A115: =données!W117 ->  | B115: =données!X117 ->  | C115: =données!Y117 ->  | D115: =données!AH117 -> 3
A116: =données!W118 ->  | B116: =données!X118 ->  | C116: =données!Y118 ->  | D116: =données!AH118 -> 3
A117: =données!W119 ->  | B117: =données!X119 ->  | C117: =données!Y119 ->  | D117: =données!AH119 -> 3
A118: =données!W120 ->  | B118: =données!X120 ->  | C118: =données!Y120 ->  | D118: =données!AH120 -> 3
A119: =données!W121 ->  | B119: =données!X121 ->  | C119: =données!Y121 ->  | D119: =données!AH121 -> 3
A120: =données!W122 ->  | B120: =données!X122 ->  | C120: =données!Y122 ->  | D120: =données!AH122 -> 2 | X120: =IF($D120=X$1,$E120,#N/A) ->  | Y120: =IF($D120=Y$1,$F120,#N/A) -> 
A121: =données!W123 ->  | B121: =données!X123 ->  | C121: =données!Y123 ->  | D121: =données!AH123 -> 3
A122: =données!W124 ->  | B122: =données!X124 ->  | C122: =données!Y124 ->  | D122: =données!AH124 -> 1
A123: =données!W125 ->  | B123: =données!X125 ->  | C123: =données!Y125 ->  | D123: =données!AH125 -> 1
A124: =données!W126 ->  | B124: =données!X126 ->  | C124: =données!Y126 ->  | D124: =données!AH126 -> 4
A125: =données!W127 ->  | B125: =données!X127 ->  | C125: =données!Y127 ->  | D125: =données!AH127 -> 5
A126: =données!W128 ->  | B126: =données!X128 ->  | C126: =données!Y128 ->  | D126: =données!AH128 -> 5
A127: =données!W129 ->  | B127: =données!X129 ->  | C127: =données!Y129 ->  | D127: =données!AH129 -> 2
A128: =données!W130 ->  | B128: =données!X130 ->  | C128: =données!Y130 ->  | D128: =données!AH130 -> 5
A129: =données!W131 ->  | B129: =données!X131 ->  | C129: =données!Y131 ->  | D129: =données!AH131 -> 3
A130: =données!W132 ->  | B130: =données!X132 ->  | C130: =données!Y132 ->  | D130: =données!AH132 -> 3 | E130: =A130+B130*$I$2 ->  | F130: =C130+B130*$I$3 ->  | Z130: =IF($D130=Z$1,$E130,#N/A) ->  | AA130: =IF($D130=AA$1,$F130,#N/A) ->  | AB130: =IF($D130=AB$1,$E130,#N/A) ->  | AC130: =IF($D130=AC$1,$F130,#N/A) ->  | AD130: =IF($D130=AD$1,$E130,#N/A) ->  | AE130: =IF($D130=AE$1,$F130,#N/A) ->  | AF130: =IF($D130=AF$1,$E130,#N/A) ->  | AG130: =IF($D130=AG$1,$F130,#N/A) ->  | AH130: =IF($D130=AH$1,$E130,#N/A) ->  | AI130: =IF($D130=AI$1,$F130,#N/A) ->  | AJ130: =IF($D130=AJ$1,$E130,#N/A) ->  | AK130: =IF($D130=AK$1,$F130,#N/A) -> 
A131: =données!W133 ->  | B131: =données!X133 ->  | C131: =données!Y133 ->  | D131: =données!AH133 -> 6
A132: =données!W134 ->  | B132: =données!X134 ->  | C132: =données!Y134 ->  | D132: =données!AH134 -> 4
A133: =données!W135 ->  | B133: =données!X135 ->  | C133: =données!Y135 ->  | D133: =données!AH135 -> 5
A134: =données!W136 ->  | B134: =données!X136 ->  | C134: =données!Y136 ->  | D134: =données!AH136 -> 5
A135: =données!W137 ->  | B135: =données!X137 ->  | C135: =données!Y137 ->  | D135: =données!AH137 -> 5
A136: =données!W138 ->  | B136: =données!X138 ->  | C136: =données!Y138 ->  | D136: =données!AH138 -> 3
A137: =données!W139 ->  | B137: =données!X139 ->  | C137: =données!Y139 ->  | D137: =données!AH139 -> 4
A138: =données!W140 ->  | B138: =données!X140 ->  | C138: =données!Y140 ->  | D138: =données!AH140 -> 3
A139: =données!W141 ->  | B139: =données!X141 ->  | C139: =données!Y141 ->  | D139: =données!AH141 -> 4
A140: =données!W142 ->  | B140: =données!X142 ->  | C140: =données!Y142 ->  | D140: =données!AH142 -> 1
A141: =données!W143 ->  | B141: =données!X143 ->  | C141: =données!Y143 ->  | D141: =données!AH143 -> 1
A142: =données!W144 ->  | B142: =données!X144 ->  | C142: =données!Y144 ->  | D142: =données!AH144 -> 3
A143: =données!W145 ->  | B143: =données!X145 ->  | C143: =données!Y145 ->  | D143: =données!AH145 -> 7
A144: =données!W146 ->  | B144: =données!X146 ->  | C144: =données!Y146 ->  | D144: =données!AH146 -> 4
A145: =données!W147 ->  | B145: =données!X147 ->  | C145: =données!Y147 ->  | D145: =données!AH147 -> 3
A146: =données!W148 ->  | B146: =données!X148 ->  | C146: =données!Y148 ->  | D146: =données!AH148 -> 3
A147: =données!W149 ->  | B147: =données!X149 ->  | C147: =données!Y149 ->  | D147: =données!AH149 -> 1
A148: =données!W150 ->  | B148: =données!X150 ->  | C148: =données!Y150 ->  | D148: =données!AH150 -> 6
A149: =données!W151 ->  | B149: =données!X151 ->  | C149: =données!Y151 ->  | D149: =données!AH151 -> 2
A150: =données!W152 ->  | B150: =données!X152 ->  | C150: =données!Y152 ->  | D150: =données!AH152 -> 2
A151: =données!W153 ->  | B151: =données!X153 ->  | C151: =données!Y153 ->  | D151: =données!AH153 -> 6
A152: =données!W154 ->  | B152: =données!X154 ->  | C152: =données!Y154 ->  | D152: =données!AH154 -> 2
A153: =données!W155 ->  | B153: =données!X155 ->  | C153: =données!Y155 ->  | D153: =données!AH155 -> 4
A154: =données!W156 ->  | B154: =données!X156 ->  | C154: =données!Y156 ->  | D154: =données!AH156 -> 5
A155: =données!W157 ->  | B155: =données!X157 ->  | C155: =données!Y157 ->  | D155: =données!AH157 -> 3
A156: =données!W158 ->  | B156: =données!X158 ->  | C156: =données!Y158 ->  | D156: =données!AH158 -> 3
A157: =données!W159 ->  | B157: =données!X159 ->  | C157: =données!Y159 ->  | D157: =données!AH159 -> 7
A158: =données!W160 ->  | B158: =données!X160 ->  | C158: =données!Y160 ->  | D158: =données!AH160 -> 4
A159: =données!W161 ->  | B159: =données!X161 ->  | C159: =données!Y161 ->  | D159: =données!AH161 -> 4
A160: =données!W162 ->  | B160: =données!X162 ->  | C160: =données!Y162 ->  | D160: =données!AH162 -> 2
A161: =données!W163 ->  | B161: =données!X163 ->  | C161: =données!Y163 ->  | D161: =données!AH163 -> 5
A162: =données!W164 ->  | B162: =données!X164 ->  | C162: =données!Y164 ->  | D162: =données!AH164 -> 5
A163: =données!W165 ->  | B163: =données!X165 ->  | C163: =données!Y165 ->  | D163: =données!AH165 -> 4
A164: =données!W166 ->  | B164: =données!X166 ->  | C164: =données!Y166 ->  | D164: =données!AH166 -> 6
A165: =données!W167 ->  | B165: =données!X167 ->  | C165: =données!Y167 ->  | D165: =données!AH167 -> 3
A166: =données!W168 ->  | B166: =données!X168 ->  | C166: =données!Y168 ->  | D166: =données!AH168 -> 7
A167: =données!W169 ->  | B167: =données!X169 ->  | C167: =données!Y169 ->  | D167: =données!AH169 -> 5
A168: =données!W170 ->  | B168: =données!X170 ->  | C168: =données!Y170 ->  | D168: =données!AH170 -> 5
A169: =données!W171 ->  | B169: =données!X171 ->  | C169: =données!Y171 ->  | D169: =données!AH171 -> 4
A170: =données!W172 ->  | B170: =données!X172 ->  | C170: =données!Y172 ->  | D170: =données!AH172 -> 5
A171: =données!W173 ->  | B171: =données!X173 ->  | C171: =données!Y173 ->  | D171: =données!AH173 -> 4
A172: =données!W174 ->  | B172: =données!X174 ->  | C172: =données!Y174 ->  | D172: =données!AH174 -> 5
A173: =données!W175 ->  | B173: =données!X175 ->  | C173: =données!Y175 ->  | D173: =données!AH175 -> 5
A174: =données!W176 ->  | B174: =données!X176 ->  | C174: =données!Y176 ->  | D174: =données!AH176 -> 5
A175: =données!W177 ->  | B175: =données!X177 ->  | C175: =données!Y177 ->  | D175: =données!AH177 -> 4
A176: =données!W178 ->  | B176: =données!X178 ->  | C176: =données!Y178 ->  | D176: =données!AH178 -> 3
A177: =données!W179 ->  | B177: =données!X179 ->  | C177: =données!Y179 ->  | D177: =données!AH179 -> 3
A178: =données!W180 ->  | B178: =données!X180 ->  | C178: =données!Y180 ->  | D178: =données!AH180 -> 7
A179: =données!W181 ->  | B179: =données!X181 ->  | C179: =données!Y181 ->  | D179: =données!AH181 -> 6
A180: =données!W182 ->  | B180: =données!X182 ->  | C180: =données!Y182 ->  | D180: =données!AH182 -> 7
A181: =données!W183 ->  | B181: =données!X183 ->  | C181: =données!Y183 ->  | D181: =données!AH183 -> 7
A182: =données!W184 ->  | B182: =données!X184 ->  | C182: =données!Y184 ->  | D182: =données!AH184 -> 5
A183: =données!W185 ->  | B183: =données!X185 ->  | C183: =données!Y185 ->  | D183: =données!AH185 -> 2
A184: =données!W186 ->  | B184: =données!X186 ->  | C184: =données!Y186 ->  | D184: =données!AH186 -> 3 | X184: =IF($D184=X$1,$E184,#N/A) ->  | Y184: =IF($D184=Y$1,$F184,#N/A) -> 
A185: =données!W187 ->  | B185: =données!X187 ->  | C185: =données!Y187 ->  | D185: =données!AH187 -> 2
A186: =données!W188 ->  | B186: =données!X188 ->  | C186: =données!Y188 ->  | D186: =données!AH188 -> 6
A187: =données!W189 ->  | B187: =données!X189 ->  | C187: =données!Y189 ->  | D187: =données!AH189 -> 3
A188: =données!W190 ->  | B188: =données!X190 ->  | C188: =données!Y190 ->  | D188: =données!AH190 -> 3
A189: =données!W191 ->  | B189: =données!X191 ->  | C189: =données!Y191 ->  | D189: =données!AH191 -> 1
A190: =données!W192 ->  | B190: =données!X192 ->  | C190: =données!Y192 ->  | D190: =données!AH192 -> 1
A191: =données!W193 ->  | B191: =données!X193 ->  | C191: =données!Y193 ->  | D191: =données!AH193 -> 1
A192: =données!W194 ->  | B192: =données!X194 ->  | C192: =données!Y194 ->  | D192: =données!AH194 -> 4
A193: =données!W195 ->  | B193: =données!X195 ->  | C193: =données!Y195 ->  | D193: =données!AH195 -> 5
A194: =données!W196 ->  | B194: =données!X196 ->  | C194: =données!Y196 ->  | D194: =données!AH196 -> 1 | E194: =A194+B194*$I$2 ->  | F194: =C194+B194*$I$3 ->  | Z194: =IF($D194=Z$1,$E194,#N/A) ->  | AA194: =IF($D194=AA$1,$F194,#N/A) ->  | AB194: =IF($D194=AB$1,$E194,#N/A) ->  | AC194: =IF($D194=AC$1,$F194,#N/A) ->  | AD194: =IF($D194=AD$1,$E194,#N/A) ->  | AE194: =IF($D194=AE$1,$F194,#N/A) ->  | AF194: =IF($D194=AF$1,$E194,#N/A) ->  | AG194: =IF($D194=AG$1,$F194,#N/A) ->  | AH194: =IF($D194=AH$1,$E194,#N/A) ->  | AI194: =IF($D194=AI$1,$F194,#N/A) ->  | AJ194: =IF($D194=AJ$1,$E194,#N/A) ->  | AK194: =IF($D194=AK$1,$F194,#N/A) -> 
A195: =données!W197 ->  | B195: =données!X197 ->  | C195: =données!Y197 ->  | D195: =données!AH197 -> 7
A196: =données!W198 ->  | B196: =données!X198 ->  | C196: =données!Y198 ->  | D196: =données!AH198 -> 4
A197: =données!W199 ->  | B197: =données!X199 ->  | C197: =données!Y199 ->  | D197: =données!AH199 -> 3
A198: =données!W200 ->  | B198: =données!X200 ->  | C198: =données!Y200 ->  | D198: =données!AH200 -> 7
A199: =données!W201 ->  | B199: =données!X201 ->  | C199: =données!Y201 ->  | D199: =données!AH201 -> 3
A200: =données!W202 ->  | B200: =données!X202 ->  | C200: =données!Y202 ->  | D200: =données!AH202 -> 4
... 801 more rows

Sheet individus (hidden)
A1: =données!A1 -> nb lignes | C1: =calculs!F2 -> 1 | D1: =calculs!G2 -> 2 | E1: =C1 -> 1 | F1: =D1 -> 2
A2: =données!A2 -> 48 | C2: =calculs!E6 -> information totale 70%
A3: =données!A3 -> nb colonnes | C3: =calculs!F6 -> axe1 47% | D3: =calculs!G6 -> axe2 23% | E3: cos2 axe x | F3: cos2 axey | G3: somme cos2
A4: =données!A4 -> 7 | B4: =données!B4 -> 1 | C4: =INDEX(données!W4:AA4,individus!$C$1) -> 1.428695921 | D4: =INDEX(données!W4:AA4,individus!$D$1) -> -1.045187152 | E4: =INDEX(données!AB4:AF4,individus!$C$1) -> 0.601464582 | F4: =INDEX(données!AB4:AF4,individus!$D$1) -> 0.321898219 | G4: =E4+F4 -> 0.923362801
B5: =données!B5 -> 2 | C5: =INDEX(données!W5:AA5,individus!$C$1) -> 1.410789778 | D5: =INDEX(données!W5:AA5,individus!$D$1) -> -0.8558944634 | E5: =INDEX(données!AB5:AF5,individus!$C$1) -> 0.6585323723 | F5: =INDEX(données!AB5:AF5,individus!$D$1) -> 0.2423778643 | G5: =E5+F5 -> 0.9009102366
B6: =données!B6 -> 3 | C6: =INDEX(données!W6:AA6,individus!$C$1) -> 1.485793481 | D6: =INDEX(données!W6:AA6,individus!$D$1) -> -0.9314389824 | E6: =INDEX(données!AB6:AF6,individus!$C$1) -> 0.6565763037 | F6: =INDEX(données!AB6:AF6,individus!$D$1) -> 0.2580341146 | G6: 0.9146104183
B7: =données!B7 -> 4 | C7: =INDEX(données!W7:AA7,individus!$C$1) -> 1.262088484 | D7: =INDEX(données!W7:AA7,individus!$D$1) -> -0.9639694334 | E7: =INDEX(données!AB7:AF7,individus!$C$1) -> 0.5471933228 | F7: =INDEX(données!AB7:AF7,individus!$D$1) -> 0.3192182461 | G7: 0.8664115689
B8: =données!B8 -> 5 | C8: =INDEX(données!W8:AA8,individus!$C$1) -> 1.40081743 | D8: =INDEX(données!W8:AA8,individus!$D$1) -> -0.9416117811 | E8: =INDEX(données!AB8:AF8,individus!$C$1) -> 0.6368016846 | F8: =INDEX(données!AB8:AF8,individus!$D$1) -> 0.2877298352 | G8: 0.9245315198
B9: =données!B9 -> 6 | C9: =INDEX(données!W9:AA9,individus!$C$1) -> 1.196458192 | D9: =INDEX(données!W9:AA9,individus!$D$1) -> -1.001581973 | E9: =INDEX(données!AB9:AF9,individus!$C$1) -> 0.495305333 | F9: =INDEX(données!AB9:AF9,individus!$D$1) -> 0.3470970703 | G9: 0.8424024033
B10: =données!B10 -> 7 | C10: =INDEX(données!W10:AA10,individus!$C$1) -> 1.595650514 | D10: =INDEX(données!W10:AA10,individus!$D$1) -> -0.8042065536 | E10: =INDEX(données!AB10:AF10,individus!$C$1) -> 0.7383357549 | F10: =INDEX(données!AB10:AF10,individus!$D$1) -> 0.1875484863 | G10: 0.9258842412
B11: =données!B11 -> 8 | C11: =INDEX(données!W11:AA11,individus!$C$1) -> 1.478991077 | D11: =INDEX(données!W11:AA11,individus!$D$1) -> -0.8216545753 | E11: =INDEX(données!AB11:AF11,individus!$C$1) -> 0.7171555641 | F11: =INDEX(données!AB11:AF11,individus!$D$1) -> 0.2213404663 | G11: 0.9384960304
B12: =données!B12 -> 9 | C12: =INDEX(données!W12:AA12,individus!$C$1) -> 1.301059291 | D12: =INDEX(données!W12:AA12,individus!$D$1) -> -0.9156738476 | E12: =INDEX(données!AB12:AF12,individus!$C$1) -> 0.5737061721 | F12: =INDEX(données!AB12:AF12,individus!$D$1) -> 0.284169175 | G12: 0.8578753471
B13: =données!B13 -> 10 | C13: =INDEX(données!W13:AA13,individus!$C$1) -> 1.232281062 | D13: =INDEX(données!W13:AA13,individus!$D$1) -> -0.8270241332 | E13: =INDEX(données!AB13:AF13,individus!$C$1) -> 0.6176157547 | F13: =INDEX(données!AB13:AF13,individus!$D$1) -> 0.2781859442 | G13: 0.8958016989
B14: =données!B14 -> 11 | C14: =INDEX(données!W14:AA14,individus!$C$1) -> 1.215182241 | D14: =INDEX(données!W14:AA14,individus!$D$1) -> -0.8942931476 | E14: =INDEX(données!AB14:AF14,individus!$C$1) -> 0.5825461036 | F14: =INDEX(données!AB14:AF14,individus!$D$1) -> 0.315505751 | G14: 0.8980518546
B15: =données!B15 -> 12 | C15: =INDEX(données!W15:AA15,individus!$C$1) -> 1.220942065 | D15: =INDEX(données!W15:AA15,individus!$D$1) -> -0.8959249717 | E15: =INDEX(données!AB15:AF15,individus!$C$1) -> 0.5935631939 | F15: =INDEX(données!AB15:AF15,individus!$D$1) -> 0.3196098333 | G15: 0.9131730272
B16: =données!B16 -> 13 | C16: =INDEX(données!W16:AA16,individus!$C$1) -> 1.167139124 | D16: =INDEX(données!W16:AA16,individus!$D$1) -> -0.965047956 | E16: =INDEX(données!AB16:AF16,individus!$C$1) -> 0.4445320075 | F16: =INDEX(données!AB16:AF16,individus!$D$1) -> 0.3039174051 | G16: 0.7484494126
B17: =données!B17 -> 14 | C17: =INDEX(données!W17:AA17,individus!$C$1) -> 1.144513991 | D17: =INDEX(données!W17:AA17,individus!$D$1) -> -0.8440138045 | E17: =INDEX(données!AB17:AF17,individus!$C$1) -> 0.5485345151 | F17: =INDEX(données!AB17:AF17,individus!$D$1) -> 0.2983052159 | G17: 0.846839731
B18: =données!B18 -> 15 | C18: =INDEX(données!W18:AA18,individus!$C$1) -> 1.233728573 | D18: =INDEX(données!W18:AA18,individus!$D$1) -> -0.6922592128 | E18: =INDEX(données!AB18:AF18,individus!$C$1) -> 0.6365996346 | F18: =INDEX(données!AB18:AF18,individus!$D$1) -> 0.2004308774 | G18: 0.8370305119
B19: =données!B19 -> 16 | C19: =INDEX(données!W19:AA19,individus!$C$1) -> 1.213540941 | D19: =INDEX(données!W19:AA19,individus!$D$1) -> -0.8120967135 | E19: =INDEX(données!AB19:AF19,individus!$C$1) -> 0.6063100681 | F19: =INDEX(données!AB19:AF19,individus!$D$1) -> 0.2715197473 | G19: 0.8778298153
B20: =données!B20 -> 17 | C20: =INDEX(données!W20:AA20,individus!$C$1) -> 1.201349211 | D20: =INDEX(données!W20:AA20,individus!$D$1) -> -0.7438045852 | E20: =INDEX(données!AB20:AF20,individus!$C$1) -> 0.6464242001 | F20: =INDEX(données!AB20:AF20,individus!$D$1) -> 0.2477974167 | G20: 0.8942216168
B21: =données!B21 -> 18 | C21: =INDEX(données!W21:AA21,individus!$C$1) -> 1.261485353 | D21: =INDEX(données!W21:AA21,individus!$D$1) -> -0.6482515166 | E21: =INDEX(données!AB21:AF21,individus!$C$1) -> 0.7173676865 | F21: =INDEX(données!AB21:AF21,individus!$D$1) -> 0.189436852 | G21: 0.9068045385
B22: =données!B22 -> 19 | C22: =INDEX(données!W22:AA22,individus!$C$1) -> 1.310555383 | D22: =INDEX(données!W22:AA22,individus!$D$1) -> -0.618073919 | E22: =INDEX(données!AB22:AF22,individus!$C$1) -> 0.7799568481 | F22: =INDEX(données!AB22:AF22,individus!$D$1) -> 0.1734765011 | G22: 0.9534333492
B23: =données!B23 -> 20 | C23: =INDEX(données!W23:AA23,individus!$C$1) -> 0.7562924687 | D23: =INDEX(données!W23:AA23,individus!$D$1) -> -0.9641514773 | E23: =INDEX(données!AB23:AF23,individus!$C$1) -> 0.2794220051 | F23: =INDEX(données!AB23:AF23,individus!$D$1) -> 0.4541210105 | G23: 0.7335430156
B24: =données!B24 -> 21 | C24: =INDEX(données!W24:AA24,individus!$C$1) -> 1.321470974 | D24: =INDEX(données!W24:AA24,individus!$D$1) -> -0.5850568017 | E24: =INDEX(données!AB24:AF24,individus!$C$1) -> 0.790667866 | F24: =INDEX(données!AB24:AF24,individus!$D$1) -> 0.154979729 | G24: 0.945647595
B25: =données!B25 -> 23 | C25: =INDEX(données!W25:AA25,individus!$C$1) -> 0.04156646522 | D25: =INDEX(données!W25:AA25,individus!$D$1) -> 1.340322 | E25: =INDEX(données!AB25:AF25,individus!$C$1) -> 0.00041843983 | F25: =INDEX(données!AB25:AF25,individus!$D$1) -> 0.4350759941 | G25: 0.435494434
B26: =données!B26 -> 24 | C26: =INDEX(données!W26:AA26,individus!$C$1) -> 0.8468244352 | D26: =INDEX(données!W26:AA26,individus!$D$1) -> 1.500528661 | E26: =INDEX(données!AB26:AF26,individus!$C$1) -> 0.1307167596 | F26: =INDEX(données!AB26:AF26,individus!$D$1) -> 0.4104243334 | G26: 0.541141093
B27: =données!B27 -> 25 | C27: =INDEX(données!W27:AA27,individus!$C$1) -> 0.4669866945 | D27: =INDEX(données!W27:AA27,individus!$D$1) -> 1.541251502 | E27: =INDEX(données!AB27:AF27,individus!$C$1) -> 0.04053218176 | F27: =INDEX(données!AB27:AF27,individus!$D$1) -> 0.4415074071 | G27: 0.4820395888
B28: =données!B28 -> 26 | C28: =INDEX(données!W28:AA28,individus!$C$1) -> 0.6156815797 | D28: =INDEX(données!W28:AA28,individus!$D$1) -> 1.661112291 | E28: =INDEX(données!AB28:AF28,individus!$C$1) -> 0.06613719275 | F28: =INDEX(données!AB28:AF28,individus!$D$1) -> 0.4814280826 | G28: 0.5475652753
B29: =données!B29 -> 27 | C29: =INDEX(données!W29:AA29,individus!$C$1) -> -0.2097078949 | D29: =INDEX(données!W29:AA29,individus!$D$1) -> 1.083391306 | E29: =INDEX(données!AB29:AF29,individus!$C$1) -> 0.01358469865 | F29: =INDEX(données!AB29:AF29,individus!$D$1) -> 0.3625693933 | G29: 0.376154092
B30: =données!B30 -> 28 | C30: =INDEX(données!W30:AA30,individus!$C$1) -> -0.01245295097 | D30: =INDEX(données!W30:AA30,individus!$D$1) -> 1.196591713 | E30: =INDEX(données!AB30:AF30,individus!$C$1) -> 7.37267124e-05 | F30: =INDEX(données!AB30:AF30,individus!$D$1) -> 0.6807259293 | G30: 0.6807996561
B31: =données!B31 -> 29 | C31: =INDEX(données!W31:AA31,individus!$C$1) -> -2.449247624 | D31: =INDEX(données!W31:AA31,individus!$D$1) -> -2.024872689 | E31: =INDEX(données!AB31:AF31,individus!$C$1) -> 0.4385559472 | F31: =INDEX(données!AB31:AF31,individus!$D$1) -> 0.2997471477 | G31: 0.7383030948
B32: =données!B32 -> 31 | C32: =INDEX(données!W32:AA32,individus!$C$1) -> -2.475853569 | D32: =INDEX(données!W32:AA32,individus!$D$1) -> -2.04877679 | E32: =INDEX(données!AB32:AF32,individus!$C$1) -> 0.4920557594 | F32: =INDEX(données!AB32:AF32,individus!$D$1) -> 0.3369408753 | G32: 0.8289966347
B33: =données!B33 -> 32 | C33: =INDEX(données!W33:AA33,individus!$C$1) -> -4.025218096 | D33: =INDEX(données!W33:AA33,individus!$D$1) -> -1.259035235 | E33: =INDEX(données!AB33:AF33,individus!$C$1) -> 0.8533903848 | F33: =INDEX(données!AB33:AF33,individus!$D$1) -> 0.08349196469 | G33: 0.9368823495
B34: =données!B34 -> 33 | C34: =INDEX(données!W34:AA34,individus!$C$1) -> -3.510845376 | D34: =INDEX(données!W34:AA34,individus!$D$1) -> -0.7931571783 | E34: =INDEX(données!AB34:AF34,individus!$C$1) -> 0.8421481425 | F34: =INDEX(données!AB34:AF34,individus!$D$1) -> 0.04298170188 | G34: 0.8851298444
B35: =données!B35 -> 37 | C35: =INDEX(données!W35:AA35,individus!$C$1) -> -2.256502356 | D35: =INDEX(données!W35:AA35,individus!$D$1) -> -1.118291685 | E35: =INDEX(données!AB35:AF35,individus!$C$1) -> 0.4103613101 | F35: =INDEX(données!AB35:AF35,individus!$D$1) -> 0.1007871157 | G35: 0.5111484258
B36: =données!B36 -> 38 | C36: =INDEX(données!W36:AA36,individus!$C$1) -> -2.003983499 | D36: =INDEX(données!W36:AA36,individus!$D$1) -> -0.09159197386 | E36: =INDEX(données!AB36:AF36,individus!$C$1) -> 0.4643794083 | F36: =INDEX(données!AB36:AF36,individus!$D$1) -> 0.0009700620353 | G36: 0.4653494703
B37: =données!B37 -> 44 | C37: =INDEX(données!W37:AA37,individus!$C$1) -> -4.031221974 | D37: =INDEX(données!W37:AA37,individus!$D$1) -> -0.867771568 | E37: =INDEX(données!AB37:AF37,individus!$C$1) -> 0.876752287 | F37: =INDEX(données!AB37:AF37,individus!$D$1) -> 0.04062695896 | G37: 0.9173792459
B38: =données!B38 -> 46 | C38: =INDEX(données!W38:AA38,individus!$C$1) -> -3.332022738 | D38: =INDEX(données!W38:AA38,individus!$D$1) -> -0.5376052535 | E38: =INDEX(données!AB38:AF38,individus!$C$1) -> 0.8643664139 | F38: =INDEX(données!AB38:AF38,individus!$D$1) -> 0.02250137092 | G38: 0.8868677848
B39: =données!B39 -> 48 | C39: =INDEX(données!W39:AA39,individus!$C$1) -> -4.327691692 | D39: =INDEX(données!W39:AA39,individus!$D$1) -> -0.6786793985 | E39: =INDEX(données!AB39:AF39,individus!$C$1) -> 0.8856931455 | F39: =INDEX(données!AB39:AF39,individus!$D$1) -> 0.02178211209 | G39: 0.9074752576
B40: =données!B40 -> 50 | C40: =INDEX(données!W40:AA40,individus!$C$1) -> 3.000389274 | D40: =INDEX(données!W40:AA40,individus!$D$1) -> 0.3475323834 | E40: =INDEX(données!AB40:AF40,individus!$C$1) -> 0.3837270613 | F40: =INDEX(données!AB40:AF40,individus!$D$1) -> 0.005148228055 | G40: 0.3888752893
B41: =données!B41 -> 51 | C41: =INDEX(données!W41:AA41,individus!$C$1) -> 2.801421142 | D41: =INDEX(données!W41:AA41,individus!$D$1) -> 0.1225919203 | E41: =INDEX(données!AB41:AF41,individus!$C$1) -> 0.3525433316 | F41: =INDEX(données!AB41:AF41,individus!$D$1) -> 0.0006751175478 | G41: 0.3532184491
B42: =données!B42 -> 53 | C42: =INDEX(données!W42:AA42,individus!$C$1) -> -0.2978958799 | D42: =INDEX(données!W42:AA42,individus!$D$1) -> 1.981993358 | E42: =INDEX(données!AB42:AF42,individus!$C$1) -> 0.01682779444 | F42: =INDEX(données!AB42:AF42,individus!$D$1) -> 0.7449079249 | G42: 0.7617357193
B43: =données!B43 -> 54 | C43: =INDEX(données!W43:AA43,individus!$C$1) -> 0.1778029642 | D43: =INDEX(données!W43:AA43,individus!$D$1) -> 2.26210122 | E43: =INDEX(données!AB43:AF43,individus!$C$1) -> 0.005180465123 | F43: =INDEX(données!AB43:AF43,individus!$D$1) -> 0.838522708 | G43: 0.8437031732
B44: =données!B44 -> 55 | C44: =INDEX(données!W44:AA44,individus!$C$1) -> -0.296119116 | D44: =INDEX(données!W44:AA44,individus!$D$1) -> 2.043444586 | E44: =INDEX(données!AB44:AF44,individus!$C$1) -> 0.01910394751 | F44: =INDEX(données!AB44:AF44,individus!$D$1) -> 0.9097372085 | G44: 0.9288411561
B45: =données!B45 -> 56 | C45: =INDEX(données!W45:AA45,individus!$C$1) -> 0.05060275883 | D45: =INDEX(données!W45:AA45,individus!$D$1) -> 2.053601498 | E45: =INDEX(données!AB45:AF45,individus!$C$1) -> 0.000430139231 | F45: =INDEX(données!AB45:AF45,individus!$D$1) -> 0.7084235817 | G45: 0.708853721
B46: =données!B46 -> 57 | C46: =INDEX(données!W46:AA46,individus!$C$1) -> 0.05439698349 | D46: =INDEX(données!W46:AA46,individus!$D$1) -> 1.377475512 | E46: =INDEX(données!AB46:AF46,individus!$C$1) -> 0.0007742035409 | F46: =INDEX(données!AB46:AF46,individus!$D$1) -> 0.4964474602 | G46: 0.4972216637
B47: =données!B47 -> 59 | C47: =INDEX(données!W47:AA47,individus!$C$1) -> -1.338946377 | D47: =INDEX(données!W47:AA47,individus!$D$1) -> 1.635382801 | E47: =INDEX(données!AB47:AF47,individus!$C$1) -> 0.306894203 | F47: =INDEX(données!AB47:AF47,individus!$D$1) -> 0.4578267547 | G47: 0.7647209578
B48: =données!B48 -> 60 | C48: =INDEX(données!W48:AA48,individus!$C$1) -> -0.9028414941 | D48: =INDEX(données!W48:AA48,individus!$D$1) -> 1.999067483 | E48: =INDEX(données!AB48:AF48,individus!$C$1) -> 0.1117720938 | F48: =INDEX(données!AB48:AF48,individus!$D$1) -> 0.547980715 | G48: 0.6597528088
B49: =données!B49 -> 61 | C49: =INDEX(données!W49:AA49,individus!$C$1) -> -1.021887052 | D49: =INDEX(données!W49:AA49,individus!$D$1) -> 1.652813896 | E49: =INDEX(données!AB49:AF49,individus!$C$1) -> 0.165998242 | F49: =INDEX(données!AB49:AF49,individus!$D$1) -> 0.4342557789 | G49: 0.6002540209
B50: =données!B50 -> 62 | C50: =INDEX(données!W50:AA50,individus!$C$1) -> -1.085001671 | D50: =INDEX(données!W50:AA50,individus!$D$1) -> 1.715116489 | E50: =INDEX(données!AB50:AF50,individus!$C$1) -> 0.2336207553 | F50: =INDEX(données!AB50:AF50,individus!$D$1) -> 0.5837647325 | G50: 0.8173854877
B51: =données!B51 -> 63 | C51: =INDEX(données!W51:AA51,individus!$C$1) -> -1.317058492 | D51: =INDEX(données!W51:AA51,individus!$D$1) -> 1.676680152 | E51: =INDEX(données!AB51:AF51,individus!$C$1) -> 0.3201548117 | F51: =INDEX(données!AB51:AF51,individus!$D$1) -> 0.5188601949 | G51: 0.8390150066
B52: =données!B52 -> li 49 | C52: =INDEX(données!W52:AA52,individus!$C$1) ->  | D52: =INDEX(données!W52:AA52,individus!$D$1) ->  | E52: =INDEX(données!AB52:AF52,individus!$C$1) ->  | F52: =INDEX(données!AB52:AF52,individus!$D$1) -> 
B53: =données!B53 -> li 50 | C53: =INDEX(données!W53:AA53,individus!$C$1) ->  | D53: =INDEX(données!W53:AA53,individus!$D$1) ->  | E53: =INDEX(données!AB53:AF53,individus!$C$1) ->  | F53: =INDEX(données!AB53:AF53,individus!$D$1) -> 
B54: =données!B54 -> li 51 | C54: =INDEX(données!W54:AA54,individus!$C$1) ->  | D54: =INDEX(données!W54:AA54,individus!$D$1) ->  | E54: =INDEX(données!AB54:AF54,individus!$C$1) ->  | F54: =INDEX(données!AB54:AF54,individus!$D$1) -> 
B55: =données!B55 -> li 52 | C55: =INDEX(données!W55:AA55,individus!$C$1) ->  | D55: =INDEX(données!W55:AA55,individus!$D$1) ->  | E55: =INDEX(données!AB55:AF55,individus!$C$1) ->  | F55: =INDEX(données!AB55:AF55,individus!$D$1) -> 
B56: =données!B56 -> li 53 | C56: =INDEX(données!W56:AA56,individus!$C$1) ->  | D56: =INDEX(données!W56:AA56,individus!$D$1) ->  | E56: =INDEX(données!AB56:AF56,individus!$C$1) ->  | F56: =INDEX(données!AB56:AF56,individus!$D$1) -> 
B57: =données!B57 -> li 54 | C57: =INDEX(données!W57:AA57,individus!$C$1) ->  | D57: =INDEX(données!W57:AA57,individus!$D$1) ->  | E57: =INDEX(données!AB57:AF57,individus!$C$1) ->  | F57: =INDEX(données!AB57:AF57,individus!$D$1) -> 
B58: =données!B58 -> li 55 | C58: =INDEX(données!W58:AA58,individus!$C$1) ->  | D58: =INDEX(données!W58:AA58,individus!$D$1) ->  | E58: =INDEX(données!AB58:AF58,individus!$C$1) ->  | F58: =INDEX(données!AB58:AF58,individus!$D$1) -> 
B59: =données!B59 -> li 56 | C59: =INDEX(données!W59:AA59,individus!$C$1) ->  | D59: =INDEX(données!W59:AA59,individus!$D$1) ->  | E59: =INDEX(données!AB59:AF59,individus!$C$1) ->  | F59: =INDEX(données!AB59:AF59,individus!$D$1) -> 
B60: =données!B60 -> li 57 | C60: =INDEX(données!W60:AA60,individus!$C$1) ->  | D60: =INDEX(données!W60:AA60,individus!$D$1) ->  | E60: =INDEX(données!AB60:AF60,individus!$C$1) ->  | F60: =INDEX(données!AB60:AF60,individus!$D$1) -> 
B61: =données!B61 -> li 58 | C61: =INDEX(données!W61:AA61,individus!$C$1) ->  | D61: =INDEX(données!W61:AA61,individus!$D$1) ->  | E61: =INDEX(données!AB61:AF61,individus!$C$1) ->  | F61: =INDEX(données!AB61:AF61,individus!$D$1) -> 
B62: =données!B62 -> li 59 | C62: =INDEX(données!W62:AA62,individus!$C$1) ->  | D62: =INDEX(données!W62:AA62,individus!$D$1) ->  | E62: =INDEX(données!AB62:AF62,individus!$C$1) ->  | F62: =INDEX(données!AB62:AF62,individus!$D$1) -> 
B63: =données!B63 -> li 60 | C63: =INDEX(données!W63:AA63,individus!$C$1) ->  | D63: =INDEX(données!W63:AA63,individus!$D$1) ->  | E63: =INDEX(données!AB63:AF63,individus!$C$1) ->  | F63: =INDEX(données!AB63:AF63,individus!$D$1) -> 
B64: =données!B64 -> li 61 | C64: =INDEX(données!W64:AA64,individus!$C$1) ->  | D64: =INDEX(données!W64:AA64,individus!$D$1) ->  | E64: =INDEX(données!AB64:AF64,individus!$C$1) ->  | F64: =INDEX(données!AB64:AF64,individus!$D$1) -> 
B65: =données!B65 -> li 62 | C65: =INDEX(données!W65:AA65,individus!$C$1) ->  | D65: =INDEX(données!W65:AA65,individus!$D$1) ->  | E65: =INDEX(données!AB65:AF65,individus!$C$1) ->  | F65: =INDEX(données!AB65:AF65,individus!$D$1) -> 
B66: =données!B66 -> li 63 | C66: =INDEX(données!W66:AA66,individus!$C$1) ->  | D66: =INDEX(données!W66:AA66,individus!$D$1) ->  | E66: =INDEX(données!AB66:AF66,individus!$C$1) ->  | F66: =INDEX(données!AB66:AF66,individus!$D$1) -> 
B67: =données!B67 -> li 64 | C67: =INDEX(données!W67:AA67,individus!$C$1) ->  | D67: =INDEX(données!W67:AA67,individus!$D$1) ->  | E67: =INDEX(données!AB67:AF67,individus!$C$1) ->  | F67: =INDEX(données!AB67:AF67,individus!$D$1) -> 
B68: =données!B68 -> li 65 | C68: =INDEX(données!W68:AA68,individus!$C$1) ->  | D68: =INDEX(données!W68:AA68,individus!$D$1) ->  | E68: =INDEX(données!AB68:AF68,individus!$C$1) ->  | F68: =INDEX(données!AB68:AF68,individus!$D$1) -> 
B69: =données!B69 -> li 66 | C69: =INDEX(données!W69:AA69,individus!$C$1) ->  | D69: =INDEX(données!W69:AA69,individus!$D$1) ->  | E69: =INDEX(données!AB69:AF69,individus!$C$1) ->  | F69: =INDEX(données!AB69:AF69,individus!$D$1) ->  | G69: =E69+F69 -> 
B70: =données!B70 -> li 67 | C70: =INDEX(données!W70:AA70,individus!$C$1) ->  | D70: =INDEX(données!W70:AA70,individus!$D$1) ->  | E70: =INDEX(données!AB70:AF70,individus!$C$1) ->  | F70: =INDEX(données!AB70:AF70,individus!$D$1) -> 
B71: =données!B71 -> li 68 | C71: =INDEX(données!W71:AA71,individus!$C$1) ->  | D71: =INDEX(données!W71:AA71,individus!$D$1) ->  | E71: =INDEX(données!AB71:AF71,individus!$C$1) ->  | F71: =INDEX(données!AB71:AF71,individus!$D$1) -> 
B72: =données!B72 -> li 69 | C72: =INDEX(données!W72:AA72,individus!$C$1) ->  | D72: =INDEX(données!W72:AA72,individus!$D$1) ->  | E72: =INDEX(données!AB72:AF72,individus!$C$1) ->  | F72: =INDEX(données!AB72:AF72,individus!$D$1) -> 
B73: =données!B73 -> li 70 | C73: =INDEX(données!W73:AA73,individus!$C$1) ->  | D73: =INDEX(données!W73:AA73,individus!$D$1) ->  | E73: =INDEX(données!AB73:AF73,individus!$C$1) ->  | F73: =INDEX(données!AB73:AF73,individus!$D$1) -> 
B74: =données!B74 -> li 71 | C74: =INDEX(données!W74:AA74,individus!$C$1) ->  | D74: =INDEX(données!W74:AA74,individus!$D$1) ->  | E74: =INDEX(données!AB74:AF74,individus!$C$1) ->  | F74: =INDEX(données!AB74:AF74,individus!$D$1) -> 
B75: =données!B75 -> li 72 | C75: =INDEX(données!W75:AA75,individus!$C$1) ->  | D75: =INDEX(données!W75:AA75,individus!$D$1) ->  | E75: =INDEX(données!AB75:AF75,individus!$C$1) ->  | F75: =INDEX(données!AB75:AF75,individus!$D$1) -> 
B76: =données!B76 -> li 73 | C76: =INDEX(données!W76:AA76,individus!$C$1) ->  | D76: =INDEX(données!W76:AA76,individus!$D$1) ->  | E76: =INDEX(données!AB76:AF76,individus!$C$1) ->  | F76: =INDEX(données!AB76:AF76,individus!$D$1) -> 
B77: =données!B77 -> li 74 | C77: =INDEX(données!W77:AA77,individus!$C$1) ->  | D77: =INDEX(données!W77:AA77,individus!$D$1) ->  | E77: =INDEX(données!AB77:AF77,individus!$C$1) ->  | F77: =INDEX(données!AB77:AF77,individus!$D$1) -> 
B78: =données!B78 -> li 75 | C78: =INDEX(données!W78:AA78,individus!$C$1) ->  | D78: =INDEX(données!W78:AA78,individus!$D$1) ->  | E78: =INDEX(données!AB78:AF78,individus!$C$1) ->  | F78: =INDEX(données!AB78:AF78,individus!$D$1) -> 
B79: =données!B79 -> li 76 | C79: =INDEX(données!W79:AA79,individus!$C$1) ->  | D79: =INDEX(données!W79:AA79,individus!$D$1) ->  | E79: =INDEX(données!AB79:AF79,individus!$C$1) ->  | F79: =INDEX(données!AB79:AF79,individus!$D$1) -> 
B80: =données!B80 -> li 77 | C80: =INDEX(données!W80:AA80,individus!$C$1) ->  | D80: =INDEX(données!W80:AA80,individus!$D$1) ->  | E80: =INDEX(données!AB80:AF80,individus!$C$1) ->  | F80: =INDEX(données!AB80:AF80,individus!$D$1) -> 
B81: =données!B81 -> li 78 | C81: =INDEX(données!W81:AA81,individus!$C$1) ->  | D81: =INDEX(données!W81:AA81,individus!$D$1) ->  | E81: =INDEX(données!AB81:AF81,individus!$C$1) ->  | F81: =INDEX(données!AB81:AF81,individus!$D$1) -> 
B82: =données!B82 -> li 79 | C82: =INDEX(données!W82:AA82,individus!$C$1) ->  | D82: =INDEX(données!W82:AA82,individus!$D$1) ->  | E82: =INDEX(données!AB82:AF82,individus!$C$1) ->  | F82: =INDEX(données!AB82:AF82,individus!$D$1) -> 
B83: =données!B83 -> li 80 | C83: =INDEX(données!W83:AA83,individus!$C$1) ->  | D83: =INDEX(données!W83:AA83,individus!$D$1) ->  | E83: =INDEX(données!AB83:AF83,individus!$C$1) ->  | F83: =INDEX(données!AB83:AF83,individus!$D$1) -> 
B84: =données!B84 -> li 81 | C84: =INDEX(données!W84:AA84,individus!$C$1) ->  | D84: =INDEX(données!W84:AA84,individus!$D$1) ->  | E84: =INDEX(données!AB84:AF84,individus!$C$1) ->  | F84: =INDEX(données!AB84:AF84,individus!$D$1) -> 
B85: =données!B85 -> li 82 | C85: =INDEX(données!W85:AA85,individus!$C$1) ->  | D85: =INDEX(données!W85:AA85,individus!$D$1) ->  | E85: =INDEX(données!AB85:AF85,individus!$C$1) ->  | F85: =INDEX(données!AB85:AF85,individus!$D$1) -> 
B86: =données!B86 -> li 83 | C86: =INDEX(données!W86:AA86,individus!$C$1) ->  | D86: =INDEX(données!W86:AA86,individus!$D$1) ->  | E86: =INDEX(données!AB86:AF86,individus!$C$1) ->  | F86: =INDEX(données!AB86:AF86,individus!$D$1) -> 
B87: =données!B87 -> li 84 | C87: =INDEX(données!W87:AA87,individus!$C$1) ->  | D87: =INDEX(données!W87:AA87,individus!$D$1) ->  | E87: =INDEX(données!AB87:AF87,individus!$C$1) ->  | F87: =INDEX(données!AB87:AF87,individus!$D$1) -> 
B88: =données!B88 -> li 85 | C88: =INDEX(données!W88:AA88,individus!$C$1) ->  | D88: =INDEX(données!W88:AA88,individus!$D$1) ->  | E88: =INDEX(données!AB88:AF88,individus!$C$1) ->  | F88: =INDEX(données!AB88:AF88,individus!$D$1) -> 
B89: =données!B89 -> li 86 | C89: =INDEX(données!W89:AA89,individus!$C$1) ->  | D89: =INDEX(données!W89:AA89,individus!$D$1) ->  | E89: =INDEX(données!AB89:AF89,individus!$C$1) ->  | F89: =INDEX(données!AB89:AF89,individus!$D$1) -> 
B90: =données!B90 -> li 87 | C90: =INDEX(données!W90:AA90,individus!$C$1) ->  | D90: =INDEX(données!W90:AA90,individus!$D$1) ->  | E90: =INDEX(données!AB90:AF90,individus!$C$1) ->  | F90: =INDEX(données!AB90:AF90,individus!$D$1) -> 
B91: =données!B91 -> li 88 | C91: =INDEX(données!W91:AA91,individus!$C$1) ->  | D91: =INDEX(données!W91:AA91,individus!$D$1) ->  | E91: =INDEX(données!AB91:AF91,individus!$C$1) ->  | F91: =INDEX(données!AB91:AF91,individus!$D$1) -> 
B92: =données!B92 -> li 89 | C92: =INDEX(données!W92:AA92,individus!$C$1) ->  | D92: =INDEX(données!W92:AA92,individus!$D$1) ->  | E92: =INDEX(données!AB92:AF92,individus!$C$1) ->  | F92: =INDEX(données!AB92:AF92,individus!$D$1) -> 
B93: =données!B93 -> li 90 | C93: =INDEX(données!W93:AA93,individus!$C$1) ->  | D93: =INDEX(données!W93:AA93,individus!$D$1) ->  | E93: =INDEX(données!AB93:AF93,individus!$C$1) ->  | F93: =INDEX(données!AB93:AF93,individus!$D$1) -> 
B94: =données!B94 -> li 91 | C94: =INDEX(données!W94:AA94,individus!$C$1) ->  | D94: =INDEX(données!W94:AA94,individus!$D$1) ->  | E94: =INDEX(données!AB94:AF94,individus!$C$1) ->  | F94: =INDEX(données!AB94:AF94,individus!$D$1) -> 
B95: =données!B95 -> li 92 | C95: =INDEX(données!W95:AA95,individus!$C$1) ->  | D95: =INDEX(données!W95:AA95,individus!$D$1) ->  | E95: =INDEX(données!AB95:AF95,individus!$C$1) ->  | F95: =INDEX(données!AB95:AF95,individus!$D$1) -> 
B96: =données!B96 -> li 93 | C96: =INDEX(données!W96:AA96,individus!$C$1) ->  | D96: =INDEX(données!W96:AA96,individus!$D$1) ->  | E96: =INDEX(données!AB96:AF96,individus!$C$1) ->  | F96: =INDEX(données!AB96:AF96,individus!$D$1) -> 
B97: =données!B97 -> li 94 | C97: =INDEX(données!W97:AA97,individus!$C$1) ->  | D97: =INDEX(données!W97:AA97,individus!$D$1) ->  | E97: =INDEX(données!AB97:AF97,individus!$C$1) ->  | F97: =INDEX(données!AB97:AF97,individus!$D$1) -> 
B98: =données!B98 -> li 95 | C98: =INDEX(données!W98:AA98,individus!$C$1) ->  | D98: =INDEX(données!W98:AA98,individus!$D$1) ->  | E98: =INDEX(données!AB98:AF98,individus!$C$1) ->  | F98: =INDEX(données!AB98:AF98,individus!$D$1) -> 
B99: =données!B99 -> li 96 | C99: =INDEX(données!W99:AA99,individus!$C$1) ->  | D99: =INDEX(données!W99:AA99,individus!$D$1) ->  | E99: =INDEX(données!AB99:AF99,individus!$C$1) ->  | F99: =INDEX(données!AB99:AF99,individus!$D$1) -> 
B100: =données!B100 -> li 97 | C100: =INDEX(données!W100:AA100,individus!$C$1) ->  | D100: =INDEX(données!W100:AA100,individus!$D$1) ->  | E100: =INDEX(données!AB100:AF100,individus!$C$1) ->  | F100: =INDEX(données!AB100:AF100,individus!$D$1) -> 
B101: =données!B101 -> li 98 | C101: =INDEX(données!W101:AA101,individus!$C$1) ->  | D101: =INDEX(données!W101:AA101,individus!$D$1) ->  | E101: =INDEX(données!AB101:AF101,individus!$C$1) ->  | F101: =INDEX(données!AB101:AF101,individus!$D$1) -> 
B102: =données!B102 -> li 99 | C102: =INDEX(données!W102:AA102,individus!$C$1) ->  | D102: =INDEX(données!W102:AA102,individus!$D$1) ->  | E102: =INDEX(données!AB102:AF102,individus!$C$1) ->  | F102: =INDEX(données!AB102:AF102,individus!$D$1) -> 
B103: =données!B103 -> li 100 | C103: =INDEX(données!W103:AA103,individus!$C$1) ->  | D103: =INDEX(données!W103:AA103,individus!$D$1) ->  | E103: =INDEX(données!AB103:AF103,individus!$C$1) ->  | F103: =INDEX(données!AB103:AF103,individus!$D$1) -> 
B104: =données!B104 -> li 101 | C104: =INDEX(données!W104:AA104,individus!$C$1) ->  | D104: =INDEX(données!W104:AA104,individus!$D$1) ->  | E104: =INDEX(données!AB104:AF104,individus!$C$1) ->  | F104: =INDEX(données!AB104:AF104,individus!$D$1) -> 
B105: =données!B105 -> li 102 | C105: =INDEX(données!W105:AA105,individus!$C$1) ->  | D105: =INDEX(données!W105:AA105,individus!$D$1) ->  | E105: =INDEX(données!AB105:AF105,individus!$C$1) ->  | F105: =INDEX(données!AB105:AF105,individus!$D$1) -> 
B106: =données!B106 -> li 103 | C106: =INDEX(données!W106:AA106,individus!$C$1) ->  | D106: =INDEX(données!W106:AA106,individus!$D$1) ->  | E106: =INDEX(données!AB106:AF106,individus!$C$1) ->  | F106: =INDEX(données!AB106:AF106,individus!$D$1) -> 
B107: =données!B107 -> li 104 | C107: =INDEX(données!W107:AA107,individus!$C$1) ->  | D107: =INDEX(données!W107:AA107,individus!$D$1) ->  | E107: =INDEX(données!AB107:AF107,individus!$C$1) ->  | F107: =INDEX(données!AB107:AF107,individus!$D$1) -> 
B108: =données!B108 -> li 105 | C108: =INDEX(données!W108:AA108,individus!$C$1) ->  | D108: =INDEX(données!W108:AA108,individus!$D$1) ->  | E108: =INDEX(données!AB108:AF108,individus!$C$1) ->  | F108: =INDEX(données!AB108:AF108,individus!$D$1) -> 
B109: =données!B109 -> li 106 | C109: =INDEX(données!W109:AA109,individus!$C$1) ->  | D109: =INDEX(données!W109:AA109,individus!$D$1) ->  | E109: =INDEX(données!AB109:AF109,individus!$C$1) ->  | F109: =INDEX(données!AB109:AF109,individus!$D$1) -> 
B110: =données!B110 -> li 107 | C110: =INDEX(données!W110:AA110,individus!$C$1) ->  | D110: =INDEX(données!W110:AA110,individus!$D$1) ->  | E110: =INDEX(données!AB110:AF110,individus!$C$1) ->  | F110: =INDEX(données!AB110:AF110,individus!$D$1) -> 
B111: =données!B111 -> li 108 | C111: =INDEX(données!W111:AA111,individus!$C$1) ->  | D111: =INDEX(données!W111:AA111,individus!$D$1) ->  | E111: =INDEX(données!AB111:AF111,individus!$C$1) ->  | F111: =INDEX(données!AB111:AF111,individus!$D$1) -> 
B112: =données!B112 -> li 109 | C112: =INDEX(données!W112:AA112,individus!$C$1) ->  | D112: =INDEX(données!W112:AA112,individus!$D$1) ->  | E112: =INDEX(données!AB112:AF112,individus!$C$1) ->  | F112: =INDEX(données!AB112:AF112,individus!$D$1) -> 
B113: =données!B113 -> li 110 | C113: =INDEX(données!W113:AA113,individus!$C$1) ->  | D113: =INDEX(données!W113:AA113,individus!$D$1) ->  | E113: =INDEX(données!AB113:AF113,individus!$C$1) ->  | F113: =INDEX(données!AB113:AF113,individus!$D$1) -> 
B114: =données!B114 -> li 111 | C114: =INDEX(données!W114:AA114,individus!$C$1) ->  | D114: =INDEX(données!W114:AA114,individus!$D$1) ->  | E114: =INDEX(données!AB114:AF114,individus!$C$1) ->  | F114: =INDEX(données!AB114:AF114,individus!$D$1) -> 
B115: =données!B115 -> li 112 | C115: =INDEX(données!W115:AA115,individus!$C$1) ->  | D115: =INDEX(données!W115:AA115,individus!$D$1) ->  | E115: =INDEX(données!AB115:AF115,individus!$C$1) ->  | F115: =INDEX(données!AB115:AF115,individus!$D$1) -> 
B116: =données!B116 -> li 113 | C116: =INDEX(données!W116:AA116,individus!$C$1) ->  | D116: =INDEX(données!W116:AA116,individus!$D$1) ->  | E116: =INDEX(données!AB116:AF116,individus!$C$1) ->  | F116: =INDEX(données!AB116:AF116,individus!$D$1) -> 
B117: =données!B117 -> li 114 | C117: =INDEX(données!W117:AA117,individus!$C$1) ->  | D117: =INDEX(données!W117:AA117,individus!$D$1) ->  | E117: =INDEX(données!AB117:AF117,individus!$C$1) ->  | F117: =INDEX(données!AB117:AF117,individus!$D$1) -> 
B118: =données!B118 -> li 115 | C118: =INDEX(données!W118:AA118,individus!$C$1) ->  | D118: =INDEX(données!W118:AA118,individus!$D$1) ->  | E118: =INDEX(données!AB118:AF118,individus!$C$1) ->  | F118: =INDEX(données!AB118:AF118,individus!$D$1) -> 
B119: =données!B119 -> li 116 | C119: =INDEX(données!W119:AA119,individus!$C$1) ->  | D119: =INDEX(données!W119:AA119,individus!$D$1) ->  | E119: =INDEX(données!AB119:AF119,individus!$C$1) ->  | F119: =INDEX(données!AB119:AF119,individus!$D$1) -> 
B120: =données!B120 -> li 117 | C120: =INDEX(données!W120:AA120,individus!$C$1) ->  | D120: =INDEX(données!W120:AA120,individus!$D$1) ->  | E120: =INDEX(données!AB120:AF120,individus!$C$1) ->  | F120: =INDEX(données!AB120:AF120,individus!$D$1) -> 
B121: =données!B121 -> li 118 | C121: =INDEX(données!W121:AA121,individus!$C$1) ->  | D121: =INDEX(données!W121:AA121,individus!$D$1) ->  | E121: =INDEX(données!AB121:AF121,individus!$C$1) ->  | F121: =INDEX(données!AB121:AF121,individus!$D$1) -> 
B122: =données!B122 -> li 119 | C122: =INDEX(données!W122:AA122,individus!$C$1) ->  | D122: =INDEX(données!W122:AA122,individus!$D$1) ->  | E122: =INDEX(données!AB122:AF122,individus!$C$1) ->  | F122: =INDEX(données!AB122:AF122,individus!$D$1) -> 
B123: =données!B123 -> li 120 | C123: =INDEX(données!W123:AA123,individus!$C$1) ->  | D123: =INDEX(données!W123:AA123,individus!$D$1) ->  | E123: =INDEX(données!AB123:AF123,individus!$C$1) ->  | F123: =INDEX(données!AB123:AF123,individus!$D$1) -> 
B124: =données!B124 -> li 121 | C124: =INDEX(données!W124:AA124,individus!$C$1) ->  | D124: =INDEX(données!W124:AA124,individus!$D$1) ->  | E124: =INDEX(données!AB124:AF124,individus!$C$1) ->  | F124: =INDEX(données!AB124:AF124,individus!$D$1) -> 
B125: =données!B125 -> li 122 | C125: =INDEX(données!W125:AA125,individus!$C$1) ->  | D125: =INDEX(données!W125:AA125,individus!$D$1) ->  | E125: =INDEX(données!AB125:AF125,individus!$C$1) ->  | F125: =INDEX(données!AB125:AF125,individus!$D$1) -> 
B126: =données!B126 -> li 123 | C126: =INDEX(données!W126:AA126,individus!$C$1) ->  | D126: =INDEX(données!W126:AA126,individus!$D$1) ->  | E126: =INDEX(données!AB126:AF126,individus!$C$1) ->  | F126: =INDEX(données!AB126:AF126,individus!$D$1) -> 
B127: =données!B127 -> li 124 | C127: =INDEX(données!W127:AA127,individus!$C$1) ->  | D127: =INDEX(données!W127:AA127,individus!$D$1) ->  | E127: =INDEX(données!AB127:AF127,individus!$C$1) ->  | F127: =INDEX(données!AB127:AF127,individus!$D$1) -> 
B128: =données!B128 -> li 125 | C128: =INDEX(données!W128:AA128,individus!$C$1) ->  | D128: =INDEX(données!W128:AA128,individus!$D$1) ->  | E128: =INDEX(données!AB128:AF128,individus!$C$1) ->  | F128: =INDEX(données!AB128:AF128,individus!$D$1) -> 
B129: =données!B129 -> li 126 | C129: =INDEX(données!W129:AA129,individus!$C$1) ->  | D129: =INDEX(données!W129:AA129,individus!$D$1) ->  | E129: =INDEX(données!AB129:AF129,individus!$C$1) ->  | F129: =INDEX(données!AB129:AF129,individus!$D$1) -> 
B130: =données!B130 -> li 127 | C130: =INDEX(données!W130:AA130,individus!$C$1) ->  | D130: =INDEX(données!W130:AA130,individus!$D$1) ->  | E130: =INDEX(données!AB130:AF130,individus!$C$1) ->  | F130: =INDEX(données!AB130:AF130,individus!$D$1) -> 
B131: =données!B131 -> li 128 | C131: =INDEX(données!W131:AA131,individus!$C$1) ->  | D131: =INDEX(données!W131:AA131,individus!$D$1) ->  | E131: =INDEX(données!AB131:AF131,individus!$C$1) ->  | F131: =INDEX(données!AB131:AF131,individus!$D$1) -> 
B132: =données!B132 -> li 129 | C132: =INDEX(données!W132:AA132,individus!$C$1) ->  | D132: =INDEX(données!W132:AA132,individus!$D$1) ->  | E132: =INDEX(données!AB132:AF132,individus!$C$1) ->  | F132: =INDEX(données!AB132:AF132,individus!$D$1) -> 
B133: =données!B133 -> li 130 | C133: =INDEX(données!W133:AA133,individus!$C$1) ->  | D133: =INDEX(données!W133:AA133,individus!$D$1) ->  | E133: =INDEX(données!AB133:AF133,individus!$C$1) ->  | F133: =INDEX(données!AB133:AF133,individus!$D$1) ->  | G133: =E133+F133 -> 
B134: =données!B134 -> li 131 | C134: =INDEX(données!W134:AA134,individus!$C$1) ->  | D134: =INDEX(données!W134:AA134,individus!$D$1) ->  | E134: =INDEX(données!AB134:AF134,individus!$C$1) ->  | F134: =INDEX(données!AB134:AF134,individus!$D$1) -> 
B135: =données!B135 -> li 132 | C135: =INDEX(données!W135:AA135,individus!$C$1) ->  | D135: =INDEX(données!W135:AA135,individus!$D$1) ->  | E135: =INDEX(données!AB135:AF135,individus!$C$1) ->  | F135: =INDEX(données!AB135:AF135,individus!$D$1) -> 
B136: =données!B136 -> li 133 | C136: =INDEX(données!W136:AA136,individus!$C$1) ->  | D136: =INDEX(données!W136:AA136,individus!$D$1) ->  | E136: =INDEX(données!AB136:AF136,individus!$C$1) ->  | F136: =INDEX(données!AB136:AF136,individus!$D$1) -> 
B137: =données!B137 -> li 134 | C137: =INDEX(données!W137:AA137,individus!$C$1) ->  | D137: =INDEX(données!W137:AA137,individus!$D$1) ->  | E137: =INDEX(données!AB137:AF137,individus!$C$1) ->  | F137: =INDEX(données!AB137:AF137,individus!$D$1) -> 
B138: =données!B138 -> li 135 | C138: =INDEX(données!W138:AA138,individus!$C$1) ->  | D138: =INDEX(données!W138:AA138,individus!$D$1) ->  | E138: =INDEX(données!AB138:AF138,individus!$C$1) ->  | F138: =INDEX(données!AB138:AF138,individus!$D$1) -> 
B139: =données!B139 -> li 136 | C139: =INDEX(données!W139:AA139,individus!$C$1) ->  | D139: =INDEX(données!W139:AA139,individus!$D$1) ->  | E139: =INDEX(données!AB139:AF139,individus!$C$1) ->  | F139: =INDEX(données!AB139:AF139,individus!$D$1) -> 
B140: =données!B140 -> li 137 | C140: =INDEX(données!W140:AA140,individus!$C$1) ->  | D140: =INDEX(données!W140:AA140,individus!$D$1) ->  | E140: =INDEX(données!AB140:AF140,individus!$C$1) ->  | F140: =INDEX(données!AB140:AF140,individus!$D$1) -> 
B141: =données!B141 -> li 138 | C141: =INDEX(données!W141:AA141,individus!$C$1) ->  | D141: =INDEX(données!W141:AA141,individus!$D$1) ->  | E141: =INDEX(données!AB141:AF141,individus!$C$1) ->  | F141: =INDEX(données!AB141:AF141,individus!$D$1) -> 
B142: =données!B142 -> li 139 | C142: =INDEX(données!W142:AA142,individus!$C$1) ->  | D142: =INDEX(données!W142:AA142,individus!$D$1) ->  | E142: =INDEX(données!AB142:AF142,individus!$C$1) ->  | F142: =INDEX(données!AB142:AF142,individus!$D$1) -> 
B143: =données!B143 -> li 140 | C143: =INDEX(données!W143:AA143,individus!$C$1) ->  | D143: =INDEX(données!W143:AA143,individus!$D$1) ->  | E143: =INDEX(données!AB143:AF143,individus!$C$1) ->  | F143: =INDEX(données!AB143:AF143,individus!$D$1) -> 
B144: =données!B144 -> li 141 | C144: =INDEX(données!W144:AA144,individus!$C$1) ->  | D144: =INDEX(données!W144:AA144,individus!$D$1) ->  | E144: =INDEX(données!AB144:AF144,individus!$C$1) ->  | F144: =INDEX(données!AB144:AF144,individus!$D$1) -> 
B145: =données!B145 -> li 142 | C145: =INDEX(données!W145:AA145,individus!$C$1) ->  | D145: =INDEX(données!W145:AA145,individus!$D$1) ->  | E145: =INDEX(données!AB145:AF145,individus!$C$1) ->  | F145: =INDEX(données!AB145:AF145,individus!$D$1) -> 
B146: =données!B146 -> li 143 | C146: =INDEX(données!W146:AA146,individus!$C$1) ->  | D146: =INDEX(données!W146:AA146,individus!$D$1) ->  | E146: =INDEX(données!AB146:AF146,individus!$C$1) ->  | F146: =INDEX(données!AB146:AF146,individus!$D$1) -> 
B147: =données!B147 -> li 144 | C147: =INDEX(données!W147:AA147,individus!$C$1) ->  | D147: =INDEX(données!W147:AA147,individus!$D$1) ->  | E147: =INDEX(données!AB147:AF147,individus!$C$1) ->  | F147: =INDEX(données!AB147:AF147,individus!$D$1) -> 
B148: =données!B148 -> li 145 | C148: =INDEX(données!W148:AA148,individus!$C$1) ->  | D148: =INDEX(données!W148:AA148,individus!$D$1) ->  | E148: =INDEX(données!AB148:AF148,individus!$C$1) ->  | F148: =INDEX(données!AB148:AF148,individus!$D$1) -> 
B149: =données!B149 -> li 146 | C149: =INDEX(données!W149:AA149,individus!$C$1) ->  | D149: =INDEX(données!W149:AA149,individus!$D$1) ->  | E149: =INDEX(données!AB149:AF149,individus!$C$1) ->  | F149: =INDEX(données!AB149:AF149,individus!$D$1) -> 
B150: =données!B150 -> li 147 | C150: =INDEX(données!W150:AA150,individus!$C$1) ->  | D150: =INDEX(données!W150:AA150,individus!$D$1) ->  | E150: =INDEX(données!AB150:AF150,individus!$C$1) ->  | F150: =INDEX(données!AB150:AF150,individus!$D$1) -> 
B151: =données!B151 -> li 148 | C151: =INDEX(données!W151:AA151,individus!$C$1) ->  | D151: =INDEX(données!W151:AA151,individus!$D$1) ->  | E151: =INDEX(données!AB151:AF151,individus!$C$1) ->  | F151: =INDEX(données!AB151:AF151,individus!$D$1) -> 
B152: =données!B152 -> li 149 | C152: =INDEX(données!W152:AA152,individus!$C$1) ->  | D152: =INDEX(données!W152:AA152,individus!$D$1) ->  | E152: =INDEX(données!AB152:AF152,individus!$C$1) ->  | F152: =INDEX(données!AB152:AF152,individus!$D$1) -> 
B153: =données!B153 -> li 150 | C153: =INDEX(données!W153:AA153,individus!$C$1) ->  | D153: =INDEX(données!W153:AA153,individus!$D$1) ->  | E153: =INDEX(données!AB153:AF153,individus!$C$1) ->  | F153: =INDEX(données!AB153:AF153,individus!$D$1) -> 
B154: =données!B154 -> li 151 | C154: =INDEX(données!W154:AA154,individus!$C$1) ->  | D154: =INDEX(données!W154:AA154,individus!$D$1) ->  | E154: =INDEX(données!AB154:AF154,individus!$C$1) ->  | F154: =INDEX(données!AB154:AF154,individus!$D$1) -> 
B155: =données!B155 -> li 152 | C155: =INDEX(données!W155:AA155,individus!$C$1) ->  | D155: =INDEX(données!W155:AA155,individus!$D$1) ->  | E155: =INDEX(données!AB155:AF155,individus!$C$1) ->  | F155: =INDEX(données!AB155:AF155,individus!$D$1) -> 
B156: =données!B156 -> li 153 | C156: =INDEX(données!W156:AA156,individus!$C$1) ->  | D156: =INDEX(données!W156:AA156,individus!$D$1) ->  | E156: =INDEX(données!AB156:AF156,individus!$C$1) ->  | F156: =INDEX(données!AB156:AF156,individus!$D$1) -> 
B157: =données!B157 -> li 154 | C157: =INDEX(données!W157:AA157,individus!$C$1) ->  | D157: =INDEX(données!W157:AA157,individus!$D$1) ->  | E157: =INDEX(données!AB157:AF157,individus!$C$1) ->  | F157: =INDEX(données!AB157:AF157,individus!$D$1) -> 
B158: =données!B158 -> li 155 | C158: =INDEX(données!W158:AA158,individus!$C$1) ->  | D158: =INDEX(données!W158:AA158,individus!$D$1) ->  | E158: =INDEX(données!AB158:AF158,individus!$C$1) ->  | F158: =INDEX(données!AB158:AF158,individus!$D$1) -> 
B159: =données!B159 -> li 156 | C159: =INDEX(données!W159:AA159,individus!$C$1) ->  | D159: =INDEX(données!W159:AA159,individus!$D$1) ->  | E159: =INDEX(données!AB159:AF159,individus!$C$1) ->  | F159: =INDEX(données!AB159:AF159,individus!$D$1) -> 
B160: =données!B160 -> li 157 | C160: =INDEX(données!W160:AA160,individus!$C$1) ->  | D160: =INDEX(données!W160:AA160,individus!$D$1) ->  | E160: =INDEX(données!AB160:AF160,individus!$C$1) ->  | F160: =INDEX(données!AB160:AF160,individus!$D$1) -> 
B161: =données!B161 -> li 158 | C161: =INDEX(données!W161:AA161,individus!$C$1) ->  | D161: =INDEX(données!W161:AA161,individus!$D$1) ->  | E161: =INDEX(données!AB161:AF161,individus!$C$1) ->  | F161: =INDEX(données!AB161:AF161,individus!$D$1) -> 
B162: =données!B162 -> li 159 | C162: =INDEX(données!W162:AA162,individus!$C$1) ->  | D162: =INDEX(données!W162:AA162,individus!$D$1) ->  | E162: =INDEX(données!AB162:AF162,individus!$C$1) ->  | F162: =INDEX(données!AB162:AF162,individus!$D$1) -> 
B163: =données!B163 -> li 160 | C163: =INDEX(données!W163:AA163,individus!$C$1) ->  | D163: =INDEX(données!W163:AA163,individus!$D$1) ->  | E163: =INDEX(données!AB163:AF163,individus!$C$1) ->  | F163: =INDEX(données!AB163:AF163,individus!$D$1) -> 
B164: =données!B164 -> li 161 | C164: =INDEX(données!W164:AA164,individus!$C$1) ->  | D164: =INDEX(données!W164:AA164,individus!$D$1) ->  | E164: =INDEX(données!AB164:AF164,individus!$C$1) ->  | F164: =INDEX(données!AB164:AF164,individus!$D$1) -> 
B165: =données!B165 -> li 162 | C165: =INDEX(données!W165:AA165,individus!$C$1) ->  | D165: =INDEX(données!W165:AA165,individus!$D$1) ->  | E165: =INDEX(données!AB165:AF165,individus!$C$1) ->  | F165: =INDEX(données!AB165:AF165,individus!$D$1) -> 
B166: =données!B166 -> li 163 | C166: =INDEX(données!W166:AA166,individus!$C$1) ->  | D166: =INDEX(données!W166:AA166,individus!$D$1) ->  | E166: =INDEX(données!AB166:AF166,individus!$C$1) ->  | F166: =INDEX(données!AB166:AF166,individus!$D$1) -> 
B167: =données!B167 -> li 164 | C167: =INDEX(données!W167:AA167,individus!$C$1) ->  | D167: =INDEX(données!W167:AA167,individus!$D$1) ->  | E167: =INDEX(données!AB167:AF167,individus!$C$1) ->  | F167: =INDEX(données!AB167:AF167,individus!$D$1) -> 
B168: =données!B168 -> li 165 | C168: =INDEX(données!W168:AA168,individus!$C$1) ->  | D168: =INDEX(données!W168:AA168,individus!$D$1) ->  | E168: =INDEX(données!AB168:AF168,individus!$C$1) ->  | F168: =INDEX(données!AB168:AF168,individus!$D$1) -> 
B169: =données!B169 -> li 166 | C169: =INDEX(données!W169:AA169,individus!$C$1) ->  | D169: =INDEX(données!W169:AA169,individus!$D$1) ->  | E169: =INDEX(données!AB169:AF169,individus!$C$1) ->  | F169: =INDEX(données!AB169:AF169,individus!$D$1) -> 
B170: =données!B170 -> li 167 | C170: =INDEX(données!W170:AA170,individus!$C$1) ->  | D170: =INDEX(données!W170:AA170,individus!$D$1) ->  | E170: =INDEX(données!AB170:AF170,individus!$C$1) ->  | F170: =INDEX(données!AB170:AF170,individus!$D$1) -> 
B171: =données!B171 -> li 168 | C171: =INDEX(données!W171:AA171,individus!$C$1) ->  | D171: =INDEX(données!W171:AA171,individus!$D$1) ->  | E171: =INDEX(données!AB171:AF171,individus!$C$1) ->  | F171: =INDEX(données!AB171:AF171,individus!$D$1) -> 
B172: =données!B172 -> li 169 | C172: =INDEX(données!W172:AA172,individus!$C$1) ->  | D172: =INDEX(données!W172:AA172,individus!$D$1) ->  | E172: =INDEX(données!AB172:AF172,individus!$C$1) ->  | F172: =INDEX(données!AB172:AF172,individus!$D$1) -> 
B173: =données!B173 -> li 170 | C173: =INDEX(données!W173:AA173,individus!$C$1) ->  | D173: =INDEX(données!W173:AA173,individus!$D$1) ->  | E173: =INDEX(données!AB173:AF173,individus!$C$1) ->  | F173: =INDEX(données!AB173:AF173,individus!$D$1) -> 
B174: =données!B174 -> li 171 | C174: =INDEX(données!W174:AA174,individus!$C$1) ->  | D174: =INDEX(données!W174:AA174,individus!$D$1) ->  | E174: =INDEX(données!AB174:AF174,individus!$C$1) ->  | F174: =INDEX(données!AB174:AF174,individus!$D$1) -> 
B175: =données!B175 -> li 172 | C175: =INDEX(données!W175:AA175,individus!$C$1) ->  | D175: =INDEX(données!W175:AA175,individus!$D$1) ->  | E175: =INDEX(données!AB175:AF175,individus!$C$1) ->  | F175: =INDEX(données!AB175:AF175,individus!$D$1) -> 
B176: =données!B176 -> li 173 | C176: =INDEX(données!W176:AA176,individus!$C$1) ->  | D176: =INDEX(données!W176:AA176,individus!$D$1) ->  | E176: =INDEX(données!AB176:AF176,individus!$C$1) ->  | F176: =INDEX(données!AB176:AF176,individus!$D$1) -> 
B177: =données!B177 -> li 174 | C177: =INDEX(données!W177:AA177,individus!$C$1) ->  | D177: =INDEX(données!W177:AA177,individus!$D$1) ->  | E177: =INDEX(données!AB177:AF177,individus!$C$1) ->  | F177: =INDEX(données!AB177:AF177,individus!$D$1) -> 
B178: =données!B178 -> li 175 | C178: =INDEX(données!W178:AA178,individus!$C$1) ->  | D178: =INDEX(données!W178:AA178,individus!$D$1) ->  | E178: =INDEX(données!AB178:AF178,individus!$C$1) ->  | F178: =INDEX(données!AB178:AF178,individus!$D$1) -> 
B179: =données!B179 -> li 176 | C179: =INDEX(données!W179:AA179,individus!$C$1) ->  | D179: =INDEX(données!W179:AA179,individus!$D$1) ->  | E179: =INDEX(données!AB179:AF179,individus!$C$1) ->  | F179: =INDEX(données!AB179:AF179,individus!$D$1) -> 
B180: =données!B180 -> li 177 | C180: =INDEX(données!W180:AA180,individus!$C$1) ->  | D180: =INDEX(données!W180:AA180,individus!$D$1) ->  | E180: =INDEX(données!AB180:AF180,individus!$C$1) ->  | F180: =INDEX(données!AB180:AF180,individus!$D$1) -> 
B181: =données!B181 -> li 178 | C181: =INDEX(données!W181:AA181,individus!$C$1) ->  | D181: =INDEX(données!W181:AA181,individus!$D$1) ->  | E181: =INDEX(données!AB181:AF181,individus!$C$1) ->  | F181: =INDEX(données!AB181:AF181,individus!$D$1) -> 
B182: =données!B182 -> li 179 | C182: =INDEX(données!W182:AA182,individus!$C$1) ->  | D182: =INDEX(données!W182:AA182,individus!$D$1) ->  | E182: =INDEX(données!AB182:AF182,individus!$C$1) ->  | F182: =INDEX(données!AB182:AF182,individus!$D$1) -> 
B183: =données!B183 -> li 180 | C183: =INDEX(données!W183:AA183,individus!$C$1) ->  | D183: =INDEX(données!W183:AA183,individus!$D$1) ->  | E183: =INDEX(données!AB183:AF183,individus!$C$1) ->  | F183: =INDEX(données!AB183:AF183,individus!$D$1) -> 
B184: =données!B184 -> li 181 | C184: =INDEX(données!W184:AA184,individus!$C$1) ->  | D184: =INDEX(données!W184:AA184,individus!$D$1) ->  | E184: =INDEX(données!AB184:AF184,individus!$C$1) ->  | F184: =INDEX(données!AB184:AF184,individus!$D$1) -> 
B185: =données!B185 -> li 182 | C185: =INDEX(données!W185:AA185,individus!$C$1) ->  | D185: =INDEX(données!W185:AA185,individus!$D$1) ->  | E185: =INDEX(données!AB185:AF185,individus!$C$1) ->  | F185: =INDEX(données!AB185:AF185,individus!$D$1) -> 
B186: =données!B186 -> li 183 | C186: =INDEX(données!W186:AA186,individus!$C$1) ->  | D186: =INDEX(données!W186:AA186,individus!$D$1) ->  | E186: =INDEX(données!AB186:AF186,individus!$C$1) ->  | F186: =INDEX(données!AB186:AF186,individus!$D$1) -> 
B187: =données!B187 -> li 184 | C187: =INDEX(données!W187:AA187,individus!$C$1) ->  | D187: =INDEX(données!W187:AA187,individus!$D$1) ->  | E187: =INDEX(données!AB187:AF187,individus!$C$1) ->  | F187: =INDEX(données!AB187:AF187,individus!$D$1) -> 
B188: =données!B188 -> li 185 | C188: =INDEX(données!W188:AA188,individus!$C$1) ->  | D188: =INDEX(données!W188:AA188,individus!$D$1) ->  | E188: =INDEX(données!AB188:AF188,individus!$C$1) ->  | F188: =INDEX(données!AB188:AF188,individus!$D$1) -> 
B189: =données!B189 -> li 186 | C189: =INDEX(données!W189:AA189,individus!$C$1) ->  | D189: =INDEX(données!W189:AA189,individus!$D$1) ->  | E189: =INDEX(données!AB189:AF189,individus!$C$1) ->  | F189: =INDEX(données!AB189:AF189,individus!$D$1) -> 
B190: =données!B190 -> li 187 | C190: =INDEX(données!W190:AA190,individus!$C$1) ->  | D190: =INDEX(données!W190:AA190,individus!$D$1) ->  | E190: =INDEX(données!AB190:AF190,individus!$C$1) ->  | F190: =INDEX(données!AB190:AF190,individus!$D$1) -> 
B191: =données!B191 -> li 188 | C191: =INDEX(données!W191:AA191,individus!$C$1) ->  | D191: =INDEX(données!W191:AA191,individus!$D$1) ->  | E191: =INDEX(données!AB191:AF191,individus!$C$1) ->  | F191: =INDEX(données!AB191:AF191,individus!$D$1) -> 
B192: =données!B192 -> li 189 | C192: =INDEX(données!W192:AA192,individus!$C$1) ->  | D192: =INDEX(données!W192:AA192,individus!$D$1) ->  | E192: =INDEX(données!AB192:AF192,individus!$C$1) ->  | F192: =INDEX(données!AB192:AF192,individus!$D$1) -> 
B193: =données!B193 -> li 190 | C193: =INDEX(données!W193:AA193,individus!$C$1) ->  | D193: =INDEX(données!W193:AA193,individus!$D$1) ->  | E193: =INDEX(données!AB193:AF193,individus!$C$1) ->  | F193: =INDEX(données!AB193:AF193,individus!$D$1) -> 
B194: =données!B194 -> li 191 | C194: =INDEX(données!W194:AA194,individus!$C$1) ->  | D194: =INDEX(données!W194:AA194,individus!$D$1) ->  | E194: =INDEX(données!AB194:AF194,individus!$C$1) ->  | F194: =INDEX(données!AB194:AF194,individus!$D$1) -> 
B195: =données!B195 -> li 192 | C195: =INDEX(données!W195:AA195,individus!$C$1) ->  | D195: =INDEX(données!W195:AA195,individus!$D$1) ->  | E195: =INDEX(données!AB195:AF195,individus!$C$1) ->  | F195: =INDEX(données!AB195:AF195,individus!$D$1) -> 
B196: =données!B196 -> li 193 | C196: =INDEX(données!W196:AA196,individus!$C$1) ->  | D196: =INDEX(données!W196:AA196,individus!$D$1) ->  | E196: =INDEX(données!AB196:AF196,individus!$C$1) ->  | F196: =INDEX(données!AB196:AF196,individus!$D$1) -> 
B197: =données!B197 -> li 194 | C197: =INDEX(données!W197:AA197,individus!$C$1) ->  | D197: =INDEX(données!W197:AA197,individus!$D$1) ->  | E197: =INDEX(données!AB197:AF197,individus!$C$1) ->  | F197: =INDEX(données!AB197:AF197,individus!$D$1) ->  | G197: =E197+F197 -> 
B198: =données!B198 -> li 195 | C198: =INDEX(données!W198:AA198,individus!$C$1) ->  | D198: =INDEX(données!W198:AA198,individus!$D$1) ->  | E198: =INDEX(données!AB198:AF198,individus!$C$1) ->  | F198: =INDEX(données!AB198:AF198,individus!$D$1) -> 
B199: =données!B199 -> li 196 | C199: =INDEX(données!W199:AA199,individus!$C$1) ->  | D199: =INDEX(données!W199:AA199,individus!$D$1) ->  | E199: =INDEX(données!AB199:AF199,individus!$C$1) ->  | F199: =INDEX(données!AB199:AF199,individus!$D$1) -> 
B200: =données!B200 -> li 197 | C200: =INDEX(données!W200:AA200,individus!$C$1) ->  | D200: =INDEX(données!W200:AA200,individus!$D$1) ->  | E200: =INDEX(données!AB200:AF200,individus!$C$1) ->  | F200: =INDEX(données!AB200:AF200,individus!$D$1) -> 
... 803 more rows
